{"text_format":"1","workbook":"xlsx","n_sheets":9,"sheets":["wikioutput","Daten","Anleitung","Tabelle1","Tabelle2","A-Z","RandomEvents","ToDo","Tabelle3"],"not_rendered":{"charts":0,"images":0,"macros":1,"external_links":0,"defined_names":2,"comments":0,"pivot_tables":0},"unopened":[],"bounds":{"document_bytes":16777216,"sheet_cells":100000,"rows_first":2000,"rows_last":500,"rows_between":2000,"halvings":0,"cell_chars":16384,"cell_head_chars":4096},"cells_cut":0,"cells_raw":0,"read":"whole","date_system":"1900"}

{"sheet":"wikioutput","index":0,"n_rows":665,"n_cols":1,"rows_kept":665,"cut":false,"hidden":false,"merged":[]}
["{| class=\"wikitable\" <hiddentext>generated with [[:de:Wikipedia:Helferlein/VBA-Macro for EXCEL tableconversion]] V1.8<\\hiddentext>"]
["|- style=\"font-weight:bold\""]
["| width=\"40\" height=\"13\" valign=\"top\" | structure"]
["| width=\"26\"  valign=\"top\" | en/de-Version"]
["|style=\"background-color:#FFFF00\" width=\"60\"  valign=\"top\" | Topic1"]
["|style=\"background-color:#FFFF00\" width=\"60\"  valign=\"top\" | Topic2"]
["|style=\"background-color:#FFFF00\" width=\"76\"  valign=\"top\" | Topic3"]
["|style=\"background-color:#FFFF00\" width=\"35\"  valign=\"top\" | Topic4"]
["|style=\"background-color:#FFFF00\" width=\"35\"  valign=\"top\" | Topic5"]
["|style=\"background-color:#ED6613\" width=\"202\"  valign=\"top\" | ToDo/Status"]
["|style=\"background-color:#C2D69A\" width=\"60\"  valign=\"top\" | actual staff"]
["|style=\"background-color:#EAF1DD\" width=\"60\"  valign=\"top\" | last staff"]
["|style=\"background-color:#C5D9F1\" width=\"49\"  valign=\"top\" | Link"]
[]
["|- "]
["| align=\"right\" height=\"13\" valign=\"top\" | 1"]
["| align=\"right\"  valign=\"top\" | &nbsp;"]
["|style=\"background-color:#FFFF00\"  valign=\"top\" | General Thread"]
["|style=\"background-color:#FFFF00\" align=\"right\"  valign=\"top\" | &nbsp;"]
["|style=\"background-color:#FFFF00\" align=\"right\"  valign=\"top\" | &nbsp;"]
["|style=\"background-color:#FFFF00\" align=\"right\"  valign=\"top\" | &nbsp;"]
["|style=\"background-color:#FFFF00\" align=\"right\"  valign=\"top\" | &nbsp;"]
["|style=\"background-color:#ED6613\"  valign=\"top\" | Helper wanted"]
["|style=\"background-color:#C2D69A\" align=\"right\"  valign=\"top\" | &nbsp;"]
["|style=\"background-color:#EAF1DD\" align=\"right\"  valign=\"top\" | &nbsp;"]
["|style=\"background-color:#C5D9F1\"  valign=\"top\" | http://bote-forum.square7.ch/phpBB3/viewtopic.php?f=1&t=869"]
[]
["|- "]
["| align=\"right\" height=\"13\" valign=\"top\" | 1.1"]
["| align=\"right\"  valign=\"top\" | &nbsp;"]
["|style=\"background-color:#FFFF00\"  valign=\"top\" | Generally Missing Topics Thread"]
["|style=\"background-color:#FFFF00\" align=\"right\"  valign=\"top\" | &nbsp;"]
["|style=\"background-color:#FFFF00\" align=\"right\"  valign=\"top\" | &nbsp;"]
["|style=\"background-color:#FFFF00\" align=\"right\"  valign=\"top\" | &nbsp;"]
["|style=\"background-color:#FFFF00\" align=\"right\"  valign=\"top\" | &nbsp;"]
["|style=\"background-color:#ED6613\"  valign=\"top\" | General Missing Topics"]
["|style=\"background-color:#C2D69A\" align=\"right\"  valign=\"top\" | &nbsp;"]
["|style=\"background-color:#EAF1DD\" align=\"right\"  valign=\"top\" | &nbsp;"]
["|style=\"background-color:#C5D9F1\"  valign=\"top\" | http://bote-forum.square7.ch/phpBB3/viewtopic.php?f=4&t=1564"]
[]
["|- "]
["| align=\"right\" height=\"13\" valign=\"top\" | 2"]
["|  valign=\"top\" | en"]
["|style=\"background-color:#FFFF00\"  valign=\"top\" | Manual"]
["|style=\"background-color:#FFFF00\"  valign=\"top\" | English Translation"]
["|style=\"background-color:#FFFF00\" align=\"right\"  valign=\"top\" | &nbsp;"]
["|style=\"background-color:#FFFF00\" align=\"right\"  valign=\"top\" | &nbsp;"]
["|style=\"background-color:#FFFF00\" align=\"right\"  valign=\"top\" | &nbsp;"]
["|style=\"background-color:#ED6613\"  valign=\"top\" | missing"]
["|style=\"background-color:#C2D69A\" align=\"right\"  valign=\"top\" | &nbsp;"]
["|style=\"background-color:#EAF1DD\" align=\"right\"  valign=\"top\" | &nbsp;"]
["|style=\"background-color:#C5D9F1\"  valign=\"top\" |  [http://bote-forum.square7.ch/wiki/index.php?title=Handbücher http://bote-forum.square7.ch/wiki/index.php?title=Handbücher]"]
[]
["|- "]
["| align=\"right\" height=\"13\" valign=\"top\" | 2.1"]
["|  valign=\"top\" | e+d"]
["|style=\"background-color:#FFFF00\"  valign=\"top\" | QuickPlayGuide"]
["|style=\"background-color:#FFFF00\" align=\"right\"  valign=\"top\" | &nbsp;"]
["|style=\"background-color:#FFFF00\" align=\"right\"  valign=\"top\" | &nbsp;"]
["|style=\"background-color:#FFFF00\" align=\"right\"  valign=\"top\" | &nbsp;"]
["|style=\"background-color:#FFFF00\" align=\"right\"  valign=\"top\" | &nbsp;"]
["|style=\"background-color:#ED6613\" align=\"right\"  valign=\"top\" | &nbsp;"]
["|style=\"background-color:#C2D69A\" align=\"right\"  valign=\"top\" | &nbsp;"]
["|style=\"background-color:#EAF1DD\" align=\"right\"  valign=\"top\" | &nbsp;"]
["|style=\"background-color:#C5D9F1\"  valign=\"top\" | http://bote-forum.square7.ch/wiki/index.php?title=ErsteSchritte"]
[]
["|- "]
["| align=\"right\" height=\"15\" valign=\"top\" | 2.2"]
["| align=\"right\"  valign=\"top\" | &nbsp;"]
["|style=\"background-color:#FFFF00\"  valign=\"top\" | Tutorial-Modus"]
["|style=\"background-color:#FFFF00\" align=\"right\"  valign=\"top\" | &nbsp;"]
["|style=\"background-color:#FFFF00\" align=\"right\"  valign=\"top\" | &nbsp;"]
["|style=\"background-color:#FFFF00\" align=\"right\"  valign=\"top\" | &nbsp;"]
["|style=\"background-color:#FFFF00\" align=\"right\"  valign=\"top\" | &nbsp;"]
["|style=\"background-color:#ED6613\" align=\"right\"  valign=\"top\" | &nbsp;"]
["|style=\"background-color:#C2D69A\" align=\"right\"  valign=\"top\" | &nbsp;"]
["|style=\"background-color:#EAF1DD\" align=\"right\"  valign=\"top\" | &nbsp;"]
["|style=\"background-color:#C5D9F1;font-size:11pt;text-decoration:underline;color:#0000FF\"  valign=\"top\" |  [http://bote-forum.square7.ch/phpBB3/viewtopic.php?f=38&t=1398 http://bote-forum.square7.ch/phpBB3/viewtopic.php?f=38&t=1398]"]
[]
["|- "]
["|style=\"text-decoration:none\" align=\"right\" height=\"13\" valign=\"top\" | 2.2"]
["| align=\"right\"  valign=\"top\" | &nbsp;"]
["|style=\"background-color:#FFFF00\"  valign=\"top\" | Video-Tutorial"]
["|style=\"background-color:#FFFF00\" align=\"right\"  valign=\"top\" | &nbsp;"]
["|style=\"background-color:#FFFF00\" align=\"right\"  valign=\"top\" | &nbsp;"]
["|style=\"background-color:#FFFF00\" align=\"right\"  valign=\"top\" | &nbsp;"]
["|style=\"background-color:#FFFF00\" align=\"right\"  valign=\"top\" | &nbsp;"]
["|style=\"background-color:#ED6613\" align=\"right\"  valign=\"top\" | &nbsp;"]
["|style=\"background-color:#C2D69A\" align=\"right\"  valign=\"top\" | &nbsp;"]
["|style=\"background-color:#EAF1DD\" align=\"right\"  valign=\"top\" | &nbsp;"]
["|style=\"background-color:#C5D9F1\"  valign=\"top\" | http://bote-forum.square7.ch/phpBB3/viewtopic.php?f=10&t=1655"]
[]
["|- "]
["| align=\"right\" height=\"13\" valign=\"top\" | 3"]
["| align=\"right\"  valign=\"top\" | &nbsp;"]
["|style=\"background-color:#FFFF00\"  valign=\"top\" | Research"]
["|style=\"background-color:#FFFF00\" align=\"right\"  valign=\"top\" | &nbsp;"]
["|style=\"background-color:#FFFF00\" align=\"right\"  valign=\"top\" | &nbsp;"]
["|style=\"background-color:#FFFF00\" align=\"right\"  valign=\"top\" | &nbsp;"]
["|style=\"background-color:#FFFF00\" align=\"right\"  valign=\"top\" | &nbsp;"]
["|style=\"background-color:#ED6613\"  valign=\"top\" | Techlevel 11-14 (Techlevels are done, but e.g. missing buildings in buildings.data for 11-14)"]
["|style=\"background-color:#C2D69A\" align=\"right\"  valign=\"top\" | &nbsp;"]
["|style=\"background-color:#EAF1DD\" align=\"right\"  valign=\"top\" | &nbsp;"]
["|style=\"background-color:#C5D9F1\" align=\"right\"  valign=\"top\" | "]
[]
["|- "]
["| align=\"right\" height=\"13\" valign=\"top\" | 4"]
["|  valign=\"top\" | e+d"]
["|style=\"background-color:#FFFF00\"  valign=\"top\" | Data"]
["|style=\"background-color:#FFFF00\"  valign=\"top\" | Buildings"]
["|style=\"background-color:#FFFF00\" align=\"right\"  valign=\"top\" | &nbsp;"]
["|style=\"background-color:#FFFF00\" align=\"right\"  valign=\"top\" | &nbsp;"]
["|style=\"background-color:#FFFF00\" align=\"right\"  valign=\"top\" | &nbsp;"]
["|style=\"background-color:#ED6613\"  valign=\"top\" | new buildings for tech levels 11-14"]
["|style=\"background-color:#C2D69A\" align=\"right\"  valign=\"top\" | &nbsp;"]
["|style=\"background-color:#EAF1DD\" align=\"right\"  valign=\"top\" | &nbsp;"]
["|style=\"background-color:#C5D9F1\" align=\"right\"  valign=\"top\" | "]
[]
["|- "]
["| align=\"right\" height=\"13\" valign=\"top\" | 4.1"]
["|  valign=\"top\" | e+d"]
["|style=\"background-color:#FFFF00\"  valign=\"top\" | Data"]
["|style=\"background-color:#FFFF00\"  valign=\"top\" | Ships"]
["|style=\"background-color:#FFFF00\" align=\"right\"  valign=\"top\" | &nbsp;"]
["|style=\"background-color:#FFFF00\" align=\"right\"  valign=\"top\" | &nbsp;"]
["|style=\"background-color:#FFFF00\" align=\"right\"  valign=\"top\" | &nbsp;"]
["|style=\"background-color:#ED6613\"  valign=\"top\" | new ships for tech levels 11-14"]
["|style=\"background-color:#C2D69A\" align=\"right\"  valign=\"top\" | &nbsp;"]
["|style=\"background-color:#EAF1DD\" align=\"right\"  valign=\"top\" | &nbsp;"]
["|style=\"background-color:#C5D9F1\" align=\"right\"  valign=\"top\" | "]
[]
["|- "]
["| align=\"right\" height=\"13\" valign=\"top\" | 4.1.1"]
["| align=\"right\"  valign=\"top\" | &nbsp;"]
["|style=\"background-color:#FFFF00\"  valign=\"top\" | Data"]
["|style=\"background-color:#FFFF00\"  valign=\"top\" | Ships"]
["|style=\"background-color:#FFFF00\"  valign=\"top\" | Transport Ships"]
["|style=\"background-color:#FFFF00\" align=\"right\"  valign=\"top\" | &nbsp;"]
["|style=\"background-color:#FFFF00\" align=\"right\"  valign=\"top\" | &nbsp;"]
["|style=\"background-color:#ED6613\"  valign=\"top\" | data for quicker ships"]
["|style=\"background-color:#C2D69A\" align=\"right\"  valign=\"top\" | &nbsp;"]
["|style=\"background-color:#EAF1DD\" align=\"right\"  valign=\"top\" | &nbsp;"]
["|style=\"background-color:#C5D9F1\" align=\"right\"  valign=\"top\" | "]
[]
["|- "]
["| align=\"right\" height=\"13\" valign=\"top\" | 4.1.2"]
["| align=\"right\"  valign=\"top\" | &nbsp;"]
["|style=\"background-color:#FFFF00\"  valign=\"top\" | Data"]
["|style=\"background-color:#FFFF00\"  valign=\"top\" | Ships"]
["|style=\"background-color:#FFFF00\"  valign=\"top\" | Colony Ships"]
["|style=\"background-color:#FFFF00\" align=\"right\"  valign=\"top\" | &nbsp;"]
["|style=\"background-color:#FFFF00\" align=\"right\"  valign=\"top\" | &nbsp;"]
["|style=\"background-color:#ED6613\"  valign=\"top\" | data for quicker ships"]
["|style=\"background-color:#C2D69A\" align=\"right\"  valign=\"top\" | &nbsp;"]
["|style=\"background-color:#EAF1DD\" align=\"right\"  valign=\"top\" | &nbsp;"]
["|style=\"background-color:#C5D9F1\" align=\"right\"  valign=\"top\" | "]
[]
["|- "]
["| align=\"right\" height=\"13\" valign=\"top\" | 5"]
["| align=\"right\"  valign=\"top\" | &nbsp;"]
["|style=\"background-color:#FFFF00\"  valign=\"top\" | Random Events"]
["|style=\"background-color:#FFFF00\" align=\"right\"  valign=\"top\" | &nbsp;"]
["|style=\"background-color:#FFFF00\" align=\"right\"  valign=\"top\" | &nbsp;"]
["|style=\"background-color:#FFFF00\" align=\"right\"  valign=\"top\" | &nbsp;"]
["|style=\"background-color:#FFFF00\" align=\"right\"  valign=\"top\" | &nbsp;"]
["|style=\"background-color:#ED6613\" align=\"right\"  valign=\"top\" | &nbsp;"]
["|style=\"background-color:#C2D69A\"  valign=\"top\" | permutator and many others"]
["|style=\"background-color:#EAF1DD\" align=\"right\"  valign=\"top\" | &nbsp;"]
["|style=\"background-color:#C5D9F1\"  valign=\"top\" | http://bote-forum.square7.ch/phpBB3/viewtopic.php?f=4&t=188"]
[]
["|- "]
["| align=\"right\" height=\"13\" valign=\"top\" | 6"]
["| align=\"right\"  valign=\"top\" | &nbsp;"]
["|style=\"background-color:#FFFF00\"  valign=\"top\" | Graphics"]
["|style=\"background-color:#FFFF00\"  valign=\"top\" | Skins"]
["|style=\"background-color:#FFFF00\" align=\"right\"  valign=\"top\" | &nbsp;"]
["|style=\"background-color:#FFFF00\" align=\"right\"  valign=\"top\" | &nbsp;"]
["|style=\"background-color:#FFFF00\" align=\"right\"  valign=\"top\" | &nbsp;"]
["|style=\"background-color:#ED6613\" align=\"right\"  valign=\"top\" | &nbsp;"]
["|style=\"background-color:#C2D69A\" align=\"right\"  valign=\"top\" | &nbsp;"]
["|style=\"background-color:#EAF1DD\" align=\"right\"  valign=\"top\" | &nbsp;"]
["|style=\"background-color:#C5D9F1\"  valign=\"top\" | http://bote-forum.square7.ch/wiki/index.php?title=Grafikenbearbeiten"]
[]
["|- "]
["| align=\"right\" height=\"13\" valign=\"top\" | 6.1.1"]
["| align=\"right\"  valign=\"top\" | &nbsp;"]
["|style=\"background-color:#FFFF00\"  valign=\"top\" | Graphics"]
["|style=\"background-color:#FFFF00\"  valign=\"top\" | Skins"]
["|style=\"background-color:#FFFF00\"  valign=\"top\" | Major1"]
["|style=\"background-color:#FFFF00\" align=\"right\"  valign=\"top\" | &nbsp;"]
["|style=\"background-color:#FFFF00\" align=\"right\"  valign=\"top\" | &nbsp;"]
["|style=\"background-color:#ED6613\"  valign=\"top\" | done"]
["|style=\"background-color:#C2D69A\" align=\"right\"  valign=\"top\" | &nbsp;"]
["|style=\"background-color:#EAF1DD\" align=\"right\"  valign=\"top\" | &nbsp;"]
["|style=\"background-color:#C5D9F1\" align=\"right\"  valign=\"top\" | "]
[]
["|- "]
["| align=\"right\" height=\"13\" valign=\"top\" | 6.1.2"]
["| align=\"right\"  valign=\"top\" | &nbsp;"]
["|style=\"background-color:#FFFF00\"  valign=\"top\" | Graphics"]
["|style=\"background-color:#FFFF00\"  valign=\"top\" | Skins"]
["|style=\"background-color:#FFFF00\"  valign=\"top\" | Major2"]
["|style=\"background-color:#FFFF00\" align=\"right\"  valign=\"top\" | &nbsp;"]
["|style=\"background-color:#FFFF00\" align=\"right\"  valign=\"top\" | &nbsp;"]
["|style=\"background-color:#ED6613\"  valign=\"top\" | done"]
["|style=\"background-color:#C2D69A\" align=\"right\"  valign=\"top\" | &nbsp;"]
["|style=\"background-color:#EAF1DD\" align=\"right\"  valign=\"top\" | &nbsp;"]
["|style=\"background-color:#C5D9F1\" align=\"right\"  valign=\"top\" | "]
[]
["|- "]
["| align=\"right\" height=\"13\" valign=\"top\" | 6.1.3"]
["| align=\"right\"  valign=\"top\" | &nbsp;"]
["|style=\"background-color:#FFFF00\"  valign=\"top\" | Graphics"]
["|style=\"background-color:#FFFF00\"  valign=\"top\" | Skins"]
["|style=\"background-color:#FFFF00\"  valign=\"top\" | Major3"]
["|style=\"background-color:#FFFF00\" align=\"right\"  valign=\"top\" | &nbsp;"]
["|style=\"background-color:#FFFF00\" align=\"right\"  valign=\"top\" | &nbsp;"]
["|style=\"background-color:#ED6613\"  valign=\"top\" | done"]
["|style=\"background-color:#C2D69A\" align=\"right\"  valign=\"top\" | &nbsp;"]
["|style=\"background-color:#EAF1DD\" align=\"right\"  valign=\"top\" | &nbsp;"]
["|style=\"background-color:#C5D9F1\" align=\"right\"  valign=\"top\" | "]
[]
["|- "]
["| align=\"right\" height=\"13\" valign=\"top\" | 6.1.4"]
["| align=\"right\"  valign=\"top\" | &nbsp;"]
["|style=\"background-color:#FFFF00\"  valign=\"top\" | Graphics"]
["|style=\"background-color:#FFFF00\"  valign=\"top\" | Skins"]
["|style=\"background-color:#FFFF00\"  valign=\"top\" | Major4"]
["|style=\"background-color:#FFFF00\" align=\"right\"  valign=\"top\" | &nbsp;"]
["|style=\"background-color:#FFFF00\" align=\"right\"  valign=\"top\" | &nbsp;"]
["|style=\"background-color:#ED6613\"  valign=\"top\" | done"]
["|style=\"background-color:#C2D69A\" align=\"right\"  valign=\"top\" | &nbsp;"]
["|style=\"background-color:#EAF1DD\" align=\"right\"  valign=\"top\" | &nbsp;"]
["|style=\"background-color:#C5D9F1\" align=\"right\"  valign=\"top\" | "]
[]
["|- "]
["| align=\"right\" height=\"13\" valign=\"top\" | 6.1.5"]
["| align=\"right\"  valign=\"top\" | &nbsp;"]
["|style=\"background-color:#FFFF00\"  valign=\"top\" | Graphics"]
["|style=\"background-color:#FFFF00\"  valign=\"top\" | Skins"]
["|style=\"background-color:#FFFF00\"  valign=\"top\" | Major5"]
["|style=\"background-color:#FFFF00\" align=\"right\"  valign=\"top\" | &nbsp;"]
["|style=\"background-color:#FFFF00\" align=\"right\"  valign=\"top\" | &nbsp;"]
["|style=\"background-color:#ED6613\"  valign=\"top\" | done"]
["|style=\"background-color:#C2D69A\" align=\"right\"  valign=\"top\" | &nbsp;"]
["|style=\"background-color:#EAF1DD\" align=\"right\"  valign=\"top\" | &nbsp;"]
["|style=\"background-color:#C5D9F1\" align=\"right\"  valign=\"top\" | "]
[]
["|- "]
["| align=\"right\" height=\"13\" valign=\"top\" | 6.1.6"]
["| align=\"right\"  valign=\"top\" | &nbsp;"]
["|style=\"background-color:#FFFF00\"  valign=\"top\" | Graphics"]
["|style=\"background-color:#FFFF00\"  valign=\"top\" | Skins"]
["|style=\"background-color:#FFFF00\"  valign=\"top\" | Major6"]
["|style=\"background-color:#FFFF00\" align=\"right\"  valign=\"top\" | &nbsp;"]
["|style=\"background-color:#FFFF00\" align=\"right\"  valign=\"top\" | &nbsp;"]
["|style=\"background-color:#ED6613\"  valign=\"top\" | mostly done, details neccessary"]
["|style=\"background-color:#C2D69A\" align=\"right\"  valign=\"top\" | &nbsp;"]
["|style=\"background-color:#EAF1DD\"  valign=\"top\" | magicmot"]
["|style=\"background-color:#C5D9F1\"  valign=\"top\" | a) http://bote-forum.square7.ch/phpBB3/viewtopic.php?f=25&t=1751&hilit=omega+skin<br />i) http://bote-forum.square7.ch/phpBB3/viewtopic.php?f=8&t=763"]
[]
["|- "]
["| align=\"right\" height=\"13\" valign=\"top\" | 6.2"]
["| align=\"right\"  valign=\"top\" | &nbsp;"]
["|style=\"background-color:#FFFF00\"  valign=\"top\" | Graphics"]
["|style=\"background-color:#FFFF00\"  valign=\"top\" | Buildings"]
["|style=\"background-color:#FFFF00\" align=\"right\"  valign=\"top\" | &nbsp;"]
["|style=\"background-color:#FFFF00\" align=\"right\"  valign=\"top\" | &nbsp;"]
["|style=\"background-color:#FFFF00\" align=\"right\"  valign=\"top\" | &nbsp;"]
["|style=\"background-color:#ED6613\"  valign=\"top\" | make new ones or search in web and request free usage for BotE from copyright holder"]
["|style=\"background-color:#C2D69A\" align=\"right\"  valign=\"top\" | &nbsp;"]
["|style=\"background-color:#EAF1DD\" align=\"right\"  valign=\"top\" | &nbsp;"]
["|style=\"background-color:#C5D9F1\" align=\"right\"  valign=\"top\" | "]
[]
["|- "]
["| align=\"right\" height=\"13\" valign=\"top\" | 6.3"]
["| align=\"right\"  valign=\"top\" | &nbsp;"]
["|style=\"background-color:#FFFF00\"  valign=\"top\" | Graphics"]
["|style=\"background-color:#FFFF00\"  valign=\"top\" | Events"]
["|style=\"background-color:#FFFF00\" align=\"right\"  valign=\"top\" | &nbsp;"]
["|style=\"background-color:#FFFF00\" align=\"right\"  valign=\"top\" | &nbsp;"]
["|style=\"background-color:#FFFF00\" align=\"right\"  valign=\"top\" | &nbsp;"]
["|style=\"background-color:#ED6613\"  valign=\"top\" | make new ones or search in web and request free usage for BotE from copyright holder"]
["|style=\"background-color:#C2D69A\" align=\"right\"  valign=\"top\" | &nbsp;"]
["|style=\"background-color:#EAF1DD\" align=\"right\"  valign=\"top\" | &nbsp;"]
["|style=\"background-color:#C5D9F1\"  valign=\"top\" | http://bote-forum.square7.ch/phpBB3/viewtopic.php?f=8&t=853"]
[]
["|- "]
["| align=\"right\" height=\"13\" valign=\"top\" | 6.4"]
["| align=\"right\"  valign=\"top\" | &nbsp;"]
["|style=\"background-color:#FFFF00\"  valign=\"top\" | Graphics"]
["|style=\"background-color:#FFFF00\"  valign=\"top\" | Races"]
["|style=\"background-color:#FFFF00\" align=\"right\"  valign=\"top\" | &nbsp;"]
["|style=\"background-color:#FFFF00\" align=\"right\"  valign=\"top\" | &nbsp;"]
["|style=\"background-color:#FFFF00\" align=\"right\"  valign=\"top\" | &nbsp;"]
["|style=\"background-color:#ED6613\"  valign=\"top\" | make new ones or search in web and request free usage for BotE from copyright holder"]
["|style=\"background-color:#C2D69A\" align=\"right\"  valign=\"top\" | &nbsp;"]
["|style=\"background-color:#EAF1DD\" align=\"right\"  valign=\"top\" | &nbsp;"]
["|style=\"background-color:#C5D9F1\" align=\"right\"  valign=\"top\" | "]
[]
["|- "]
["| align=\"right\" height=\"13\" valign=\"top\" | 6.5"]
["| align=\"right\"  valign=\"top\" | &nbsp;"]
["|style=\"background-color:#FFFF00\"  valign=\"top\" | Graphics"]
["|style=\"background-color:#FFFF00\"  valign=\"top\" | Ships"]
["|style=\"background-color:#FFFF00\" align=\"right\"  valign=\"top\" | &nbsp;"]
["|style=\"background-color:#FFFF00\" align=\"right\"  valign=\"top\" | &nbsp;"]
["|style=\"background-color:#FFFF00\" align=\"right\"  valign=\"top\" | &nbsp;"]
["|style=\"background-color:#ED6613\"  valign=\"top\" | make new ones or search in web and request free usage for BotE from copyright holder"]
["|style=\"background-color:#C2D69A\" align=\"right\"  valign=\"top\" | &nbsp;"]
["|style=\"background-color:#EAF1DD\" align=\"right\"  valign=\"top\" | &nbsp;"]
["|style=\"background-color:#C5D9F1\"  valign=\"top\" | a) http://bote-forum.square7.ch/phpBB3/viewtopic.php?f=25&t=1356<br />b) Aliens and Monster http://bote-forum.square7.ch/phpBB3/viewtopic.php?f=26&t=1347<br />internal: http://bote-forum.square7.ch/phpBB3/viewtopic.php?f=8&t=704"]
[]
["|- "]
["| align=\"right\" height=\"13\" valign=\"top\" | 6.6"]
["| align=\"right\"  valign=\"top\" | &nbsp;"]
["|style=\"background-color:#FFFF00\"  valign=\"top\" | Graphics"]
["|style=\"background-color:#FFFF00\"  valign=\"top\" | Symbols"]
["|style=\"background-color:#FFFF00\" align=\"right\"  valign=\"top\" | &nbsp;"]
["|style=\"background-color:#FFFF00\" align=\"right\"  valign=\"top\" | &nbsp;"]
["|style=\"background-color:#FFFF00\" align=\"right\"  valign=\"top\" | &nbsp;"]
["|style=\"background-color:#ED6613\"  valign=\"top\" | make new ones or search in web and request free usage for BotE from copyright holder"]
["|style=\"background-color:#C2D69A\" align=\"right\"  valign=\"top\" | &nbsp;"]
["|style=\"background-color:#EAF1DD\" align=\"right\"  valign=\"top\" | &nbsp;"]
["|style=\"background-color:#C5D9F1\" align=\"right\"  valign=\"top\" | "]
[]
["|- "]
["| align=\"right\" height=\"13\" valign=\"top\" | 6.7"]
["| align=\"right\"  valign=\"top\" | &nbsp;"]
["|style=\"background-color:#FFFF00\"  valign=\"top\" | Graphics"]
["|style=\"background-color:#FFFF00\"  valign=\"top\" | Troops"]
["|style=\"background-color:#FFFF00\" align=\"right\"  valign=\"top\" | &nbsp;"]
["|style=\"background-color:#FFFF00\" align=\"right\"  valign=\"top\" | &nbsp;"]
["|style=\"background-color:#FFFF00\" align=\"right\"  valign=\"top\" | &nbsp;"]
["|style=\"background-color:#ED6613\"  valign=\"top\" | make new ones or search in web and request free usage for BotE from copyright holder"]
["|style=\"background-color:#C2D69A\" align=\"right\"  valign=\"top\" | &nbsp;"]
["|style=\"background-color:#EAF1DD\" align=\"right\"  valign=\"top\" | &nbsp;"]
["|style=\"background-color:#C5D9F1\" align=\"right\"  valign=\"top\" | "]
[]
["|- "]
["| align=\"right\" height=\"13\" valign=\"top\" | 7.1"]
["|  valign=\"top\" | en"]
["|style=\"background-color:#FFFF00\"  valign=\"top\" | Sounds"]
["|style=\"background-color:#FFFF00\"  valign=\"top\" | MajorRacesSounds"]
["|style=\"background-color:#FFFF00\" align=\"right\"  valign=\"top\" | &nbsp;"]
["|style=\"background-color:#FFFF00\" align=\"right\"  valign=\"top\" | &nbsp;"]
["|style=\"background-color:#FFFF00\" align=\"right\"  valign=\"top\" | &nbsp;"]
["|style=\"background-color:#ED6613\"  valign=\"top\" | quite ok"]
["|style=\"background-color:#C2D69A\" align=\"right\"  valign=\"top\" | &nbsp;"]
["|style=\"background-color:#EAF1DD\" align=\"right\"  valign=\"top\" | &nbsp;"]
["|style=\"background-color:#C5D9F1\" align=\"right\"  valign=\"top\" | "]
[]
["|- "]
["| align=\"right\" height=\"13\" valign=\"top\" | 7.1"]
["|  valign=\"top\" | en"]
["|style=\"background-color:#FFFF00\"  valign=\"top\" | Sounds"]
["|style=\"background-color:#FFFF00\"  valign=\"top\" | MinorRacesSounds"]
["|style=\"background-color:#FFFF00\" align=\"right\"  valign=\"top\" | &nbsp;"]
["|style=\"background-color:#FFFF00\" align=\"right\"  valign=\"top\" | &nbsp;"]
["|style=\"background-color:#FFFF00\" align=\"right\"  valign=\"top\" | &nbsp;"]
["|style=\"background-color:#ED6613\"  valign=\"top\" | quite ok"]
["|style=\"background-color:#C2D69A\" align=\"right\"  valign=\"top\" | &nbsp;"]
["|style=\"background-color:#EAF1DD\" align=\"right\"  valign=\"top\" | &nbsp;"]
["|style=\"background-color:#C5D9F1\"  valign=\"top\" | http://bote-forum.square7.ch/phpBB3/viewtopic.php?f=26&t=716"]
[]
["|- "]
["| align=\"right\" height=\"13\" valign=\"top\" | 7.1"]
["|  valign=\"top\" | en"]
["|style=\"background-color:#FFFF00\"  valign=\"top\" | Sounds"]
["|style=\"background-color:#FFFF00\"  valign=\"top\" | English Sounds"]
["|style=\"background-color:#FFFF00\" align=\"right\"  valign=\"top\" | &nbsp;"]
["|style=\"background-color:#FFFF00\" align=\"right\"  valign=\"top\" | &nbsp;"]
["|style=\"background-color:#FFFF00\" align=\"right\"  valign=\"top\" | &nbsp;"]
["|style=\"background-color:#ED6613\"  valign=\"top\" | quite ok"]
["|style=\"background-color:#C2D69A\" align=\"right\"  valign=\"top\" | &nbsp;"]
["|style=\"background-color:#EAF1DD\" align=\"right\"  valign=\"top\" | &nbsp;"]
["|style=\"background-color:#C5D9F1\"  valign=\"top\" | http://bote-forum.square7.ch/phpBB3/viewtopic.php?f=24&t=855"]
[]
["|- "]
["| align=\"right\" height=\"13\" valign=\"top\" | 7.2"]
["|  valign=\"top\" | de"]
["|style=\"background-color:#FFFF00\"  valign=\"top\" | Sounds"]
["|style=\"background-color:#FFFF00\"  valign=\"top\" | German Sounds"]
["|style=\"background-color:#FFFF00\" align=\"right\"  valign=\"top\" | &nbsp;"]
["|style=\"background-color:#FFFF00\" align=\"right\"  valign=\"top\" | &nbsp;"]
["|style=\"background-color:#FFFF00\" align=\"right\"  valign=\"top\" | &nbsp;"]
["|style=\"background-color:#ED6613\"  valign=\"top\" | missing"]
["|style=\"background-color:#C2D69A\" align=\"right\"  valign=\"top\" | &nbsp;"]
["|style=\"background-color:#EAF1DD\" align=\"right\"  valign=\"top\" | &nbsp;"]
["|style=\"background-color:#C5D9F1\"  valign=\"top\" | http://bote-forum.square7.ch/wiki/index.php?title=Sprachausgabe"]
[]
["|- "]
["| align=\"right\" height=\"13\" valign=\"top\" | 8.1"]
["| align=\"right\"  valign=\"top\" | &nbsp;"]
["|style=\"background-color:#FFFF00\"  valign=\"top\" | Programming"]
["|style=\"background-color:#FFFF00\"  valign=\"top\" | 3D-CombatSimulator"]
["|style=\"background-color:#FFFF00\" align=\"right\"  valign=\"top\" | &nbsp;"]
["|style=\"background-color:#FFFF00\" align=\"right\"  valign=\"top\" | &nbsp;"]
["|style=\"background-color:#FFFF00\" align=\"right\"  valign=\"top\" | &nbsp;"]
["|style=\"background-color:#ED6613\" align=\"right\"  valign=\"top\" | &nbsp;"]
["|style=\"background-color:#C2D69A\"  valign=\"top\" | plotnik01"]
["|style=\"background-color:#EAF1DD\" align=\"right\"  valign=\"top\" | &nbsp;"]
["|style=\"background-color:#C5D9F1\"  valign=\"top\" | a) http://bote-forum.square7.ch/phpBB3/viewtopic.php?f=14&t=382<br />b) http://bote-forum.square7.ch/phpBB3/viewtopic.php?f=24&t=743"]
[]
["|- "]
["| align=\"right\" height=\"13\" valign=\"top\" | 8.2"]
["| align=\"right\"  valign=\"top\" | &nbsp;"]
["|style=\"background-color:#FFFF00\"  valign=\"top\" | Programming"]
["|style=\"background-color:#FFFF00\"  valign=\"top\" | MinorRaceEditor"]
["|style=\"background-color:#FFFF00\" align=\"right\"  valign=\"top\" | &nbsp;"]
["|style=\"background-color:#FFFF00\" align=\"right\"  valign=\"top\" | &nbsp;"]
["|style=\"background-color:#FFFF00\" align=\"right\"  valign=\"top\" | &nbsp;"]
["|style=\"background-color:#ED6613\" align=\"right\"  valign=\"top\" | &nbsp;"]
["|style=\"background-color:#C2D69A\"  valign=\"top\" | Revisor"]
["|style=\"background-color:#EAF1DD\"  valign=\"top\" | SirP"]
["|style=\"background-color:#C5D9F1\"  valign=\"top\" | internal: http://bote-forum.square7.ch/phpBB3/viewtopic.php?f=16&t=1590"]
[]
["|- "]
["| align=\"right\" height=\"13\" valign=\"top\" | 8.3"]
["| align=\"right\"  valign=\"top\" | &nbsp;"]
["|style=\"background-color:#FFFF00\"  valign=\"top\" | Programming"]
["|style=\"background-color:#FFFF00\"  valign=\"top\" | MiniMap ein-/ausklappen"]
["|style=\"background-color:#FFFF00\" align=\"right\"  valign=\"top\" | &nbsp;"]
["|style=\"background-color:#FFFF00\" align=\"right\"  valign=\"top\" | &nbsp;"]
["|style=\"background-color:#FFFF00\" align=\"right\"  valign=\"top\" | &nbsp;"]
["|style=\"background-color:#ED6613\"  valign=\"top\" | Umsetzung fraglich/offen"]
["|style=\"background-color:#C2D69A\" align=\"right\"  valign=\"top\" | &nbsp;"]
["|style=\"background-color:#EAF1DD\" align=\"right\"  valign=\"top\" | &nbsp;"]
["|style=\"background-color:#C5D9F1\"  valign=\"top\" | http://bote-forum.square7.ch/phpBB3/viewtopic.php?f=37&t=1873"]
[]
["|- "]
["| align=\"right\" height=\"13\" valign=\"top\" | 8.4"]
["| align=\"right\"  valign=\"top\" | &nbsp;"]
["|style=\"background-color:#FFFF00\"  valign=\"top\" | Programming"]
["|style=\"background-color:#FFFF00\"  valign=\"top\" | Playtime"]
["|style=\"background-color:#FFFF00\" align=\"right\"  valign=\"top\" | &nbsp;"]
["|style=\"background-color:#FFFF00\" align=\"right\"  valign=\"top\" | &nbsp;"]
["|style=\"background-color:#FFFF00\" align=\"right\"  valign=\"top\" | &nbsp;"]
["|style=\"background-color:#ED6613\" align=\"right\"  valign=\"top\" | &nbsp;"]
["|style=\"background-color:#C2D69A\"  valign=\"top\" | Revisor?"]
["|style=\"background-color:#EAF1DD\" align=\"right\"  valign=\"top\" | &nbsp;"]
["|style=\"background-color:#C5D9F1\"  valign=\"top\" | http://bote-forum.square7.ch/phpBB3/viewtopic.php?f=38&t=1415"]
[]
["|- "]
["| align=\"right\" height=\"13\" valign=\"top\" | 8.5"]
["| align=\"right\"  valign=\"top\" | &nbsp;"]
["|style=\"background-color:#FFFF00\"  valign=\"top\" | Programming"]
["|style=\"background-color:#FFFF00\"  valign=\"top\" | Spy (Spion)"]
["|style=\"background-color:#FFFF00\" align=\"right\"  valign=\"top\" | &nbsp;"]
["|style=\"background-color:#FFFF00\" align=\"right\"  valign=\"top\" | &nbsp;"]
["|style=\"background-color:#FFFF00\" align=\"right\"  valign=\"top\" | &nbsp;"]
["|style=\"background-color:#ED6613\" align=\"right\"  valign=\"top\" | &nbsp;"]
["|style=\"background-color:#C2D69A\" align=\"right\"  valign=\"top\" | &nbsp;"]
["|style=\"background-color:#EAF1DD\" align=\"right\"  valign=\"top\" | &nbsp;"]
["|style=\"background-color:#C5D9F1\"  valign=\"top\" | http://bote-forum.square7.ch/phpBB3/viewtopic.php?f=38&t=1602"]
[]
["|- "]
["| align=\"right\" height=\"13\" valign=\"top\" | 8.6"]
["| align=\"right\"  valign=\"top\" | &nbsp;"]
["|style=\"background-color:#FFFF00\"  valign=\"top\" | Programming"]
["|style=\"background-color:#FFFF00\"  valign=\"top\" | Diplomatist"]
["|style=\"background-color:#FFFF00\" align=\"right\"  valign=\"top\" | &nbsp;"]
["|style=\"background-color:#FFFF00\" align=\"right\"  valign=\"top\" | &nbsp;"]
["|style=\"background-color:#FFFF00\" align=\"right\"  valign=\"top\" | &nbsp;"]
["|style=\"background-color:#ED6613\" align=\"right\"  valign=\"top\" | &nbsp;"]
["|style=\"background-color:#C2D69A\" align=\"right\"  valign=\"top\" | &nbsp;"]
["|style=\"background-color:#EAF1DD\" align=\"right\"  valign=\"top\" | &nbsp;"]
["|style=\"background-color:#C5D9F1\"  valign=\"top\" | http://bote-forum.square7.ch/phpBB3/viewtopic.php?f=38&t=1602"]
[]
["|- "]
["| align=\"right\" height=\"13\" valign=\"top\" | 8.7"]
["| align=\"right\"  valign=\"top\" | &nbsp;"]
["|style=\"background-color:#FFFF00\"  valign=\"top\" | Programming"]
["|style=\"background-color:#FFFF00\"  valign=\"top\" | War ending new options"]
["|style=\"background-color:#FFFF00\" align=\"right\"  valign=\"top\" | &nbsp;"]
["|style=\"background-color:#FFFF00\" align=\"right\"  valign=\"top\" | &nbsp;"]
["|style=\"background-color:#FFFF00\" align=\"right\"  valign=\"top\" | &nbsp;"]
["|style=\"background-color:#ED6613\" align=\"right\"  valign=\"top\" | &nbsp;"]
["|style=\"background-color:#C2D69A\" align=\"right\"  valign=\"top\" | &nbsp;"]
["|style=\"background-color:#EAF1DD\" align=\"right\"  valign=\"top\" | &nbsp;"]
["|style=\"background-color:#C5D9F1\" align=\"right\"  valign=\"top\" | "]
[]
["|- "]
["| align=\"right\" height=\"13\" valign=\"top\" | 8.8"]
["| align=\"right\"  valign=\"top\" | &nbsp;"]
["|style=\"background-color:#FFFF00\"  valign=\"top\" | Programming"]
["|style=\"background-color:#FFFF00\"  valign=\"top\" | Campaigns"]
["|style=\"background-color:#FFFF00\" align=\"right\"  valign=\"top\" | &nbsp;"]
["|style=\"background-color:#FFFF00\" align=\"right\"  valign=\"top\" | &nbsp;"]
["|style=\"background-color:#FFFF00\" align=\"right\"  valign=\"top\" | &nbsp;"]
["|style=\"background-color:#ED6613\" align=\"right\"  valign=\"top\" | &nbsp;"]
["|style=\"background-color:#C2D69A\" align=\"right\"  valign=\"top\" | &nbsp;"]
["|style=\"background-color:#EAF1DD\" align=\"right\"  valign=\"top\" | &nbsp;"]
["|style=\"background-color:#C5D9F1\"  valign=\"top\" | http://bote-forum.square7.ch/phpBB3/viewtopic.php?f=38&t=322"]
[]
["|- "]
["| align=\"right\" height=\"13\" valign=\"top\" | 8.9"]
["| align=\"right\"  valign=\"top\" | &nbsp;"]
["|style=\"background-color:#FFFF00\"  valign=\"top\" | Programming"]
["|style=\"background-color:#FFFF00\"  valign=\"top\" | Building-List expanding"]
["|style=\"background-color:#FFFF00\" align=\"right\"  valign=\"top\" | &nbsp;"]
["|style=\"background-color:#FFFF00\" align=\"right\"  valign=\"top\" | &nbsp;"]
["|style=\"background-color:#FFFF00\" align=\"right\"  valign=\"top\" | &nbsp;"]
["|style=\"background-color:#ED6613\"  valign=\"top\" | what was build alastly"]
["|style=\"background-color:#C2D69A\" align=\"right\"  valign=\"top\" | &nbsp;"]
["|style=\"background-color:#EAF1DD\" align=\"right\"  valign=\"top\" | &nbsp;"]
["|style=\"background-color:#C5D9F1\"  valign=\"top\" |  [http://bote-forum.square7.ch/phpBB3/viewtopic.php?f=38&t=1895 http://bote-forum.square7.ch/phpBB3/viewtopic.php?f=38&t=1895]"]
[]
["|- "]
["| align=\"right\" height=\"13\" valign=\"top\" | "]
["| align=\"right\"  valign=\"top\" | &nbsp;"]
["|style=\"background-color:#FFFF00\"  valign=\"top\" | Programming"]
["|style=\"background-color:#FFFF00\"  valign=\"top\" | ShipOverview improving"]
["|style=\"background-color:#FFFF00\" align=\"right\"  valign=\"top\" | &nbsp;"]
["|style=\"background-color:#FFFF00\" align=\"right\"  valign=\"top\" | &nbsp;"]
["|style=\"background-color:#FFFF00\" align=\"right\"  valign=\"top\" | &nbsp;"]
["|style=\"background-color:#ED6613\" align=\"right\"  valign=\"top\" | &nbsp;"]
["|style=\"background-color:#C2D69A\" align=\"right\"  valign=\"top\" | &nbsp;"]
["|style=\"background-color:#EAF1DD\" align=\"right\"  valign=\"top\" | &nbsp;"]
["|style=\"background-color:#C5D9F1\"  valign=\"top\" | a) http://bote-forum.square7.ch/phpBB3/viewtopic.php?f=38&t=1517 b) http://bote-forum.square7.ch/phpBB3/viewtopic.php?f=38&t=1588"]
[]
["|- "]
["| align=\"right\" height=\"13\" valign=\"top\" | "]
["| align=\"right\"  valign=\"top\" | &nbsp;"]
["|style=\"background-color:#FFFF00\"  valign=\"top\" | Programming"]
["|style=\"background-color:#FFFF00\"  valign=\"top\" | Events"]
["|style=\"background-color:#FFFF00\" align=\"right\"  valign=\"top\" | &nbsp;"]
["|style=\"background-color:#FFFF00\" align=\"right\"  valign=\"top\" | &nbsp;"]
["|style=\"background-color:#FFFF00\" align=\"right\"  valign=\"top\" | &nbsp;"]
["|style=\"background-color:#ED6613\" align=\"right\"  valign=\"top\" | &nbsp;"]
["|style=\"background-color:#C2D69A\" align=\"right\"  valign=\"top\" | &nbsp;"]
["|style=\"background-color:#EAF1DD\" align=\"right\"  valign=\"top\" | &nbsp;"]
["|style=\"background-color:#C5D9F1\"  valign=\"top\" | http://bote-forum.square7.ch/phpBB3/viewtopic.php?f=38&t=443"]
[]
["|- "]
["| align=\"right\" height=\"13\" valign=\"top\" | "]
["| align=\"right\"  valign=\"top\" | &nbsp;"]
["|style=\"background-color:#FFFF00\"  valign=\"top\" | Programming"]
["|style=\"background-color:#FFFF00\"  valign=\"top\" | GroundCombat"]
["|style=\"background-color:#FFFF00\" align=\"right\"  valign=\"top\" | &nbsp;"]
["|style=\"background-color:#FFFF00\" align=\"right\"  valign=\"top\" | &nbsp;"]
["|style=\"background-color:#FFFF00\" align=\"right\"  valign=\"top\" | &nbsp;"]
["|style=\"background-color:#ED6613\" align=\"right\"  valign=\"top\" | &nbsp;"]
["|style=\"background-color:#C2D69A\" align=\"right\"  valign=\"top\" | &nbsp;"]
["|style=\"background-color:#EAF1DD\" align=\"right\"  valign=\"top\" | &nbsp;"]
["|style=\"background-color:#C5D9F1\"  valign=\"top\" | http://bote-forum.square7.ch/phpBB3/viewtopic.php?f=38&t=1447"]
[]
["|- "]
["| align=\"right\" height=\"13\" valign=\"top\" | "]
["| align=\"right\"  valign=\"top\" | &nbsp;"]
["|style=\"background-color:#FFFF00\"  valign=\"top\" | Programming"]
["|style=\"background-color:#FFFF00\"  valign=\"top\" | Network Code"]
["|style=\"background-color:#FFFF00\"  valign=\"top\" | Turn End Ready Function"]
["|style=\"background-color:#FFFF00\" align=\"right\"  valign=\"top\" | &nbsp;"]
["|style=\"background-color:#FFFF00\" align=\"right\"  valign=\"top\" | &nbsp;"]
["|style=\"background-color:#ED6613\"  valign=\"top\" | Function that shows who is ready and who/how many are not"]
["|style=\"background-color:#C2D69A\" align=\"right\"  valign=\"top\" | &nbsp;"]
["|style=\"background-color:#EAF1DD\" align=\"right\"  valign=\"top\" | &nbsp;"]
["|style=\"background-color:#C5D9F1\"  valign=\"top\" | http://bote-forum.square7.ch/phpBB3/viewtopic.php?f=38&t=1373"]
[]
["|- "]
["| align=\"right\" height=\"13\" valign=\"top\" | 9.1"]
["| align=\"right\"  valign=\"top\" | &nbsp;"]
["|style=\"background-color:#FFFF00\"  valign=\"top\" | Homepage"]
["|style=\"background-color:#FFFF00\" align=\"right\"  valign=\"top\" | &nbsp;"]
["|style=\"background-color:#FFFF00\" align=\"right\"  valign=\"top\" | &nbsp;"]
["|style=\"background-color:#FFFF00\" align=\"right\"  valign=\"top\" | &nbsp;"]
["|style=\"background-color:#FFFF00\" align=\"right\"  valign=\"top\" | &nbsp;"]
["|style=\"background-color:#ED6613\" align=\"right\"  valign=\"top\" | &nbsp;"]
["|style=\"background-color:#C2D69A\"  valign=\"top\" | rainer"]
["|style=\"background-color:#EAF1DD\"  valign=\"top\" | Malle"]
["|style=\"background-color:#C5D9F1\"  valign=\"top\" | http://www.hp.birth-of-the-empires.de/"]
[]
["|- "]
["| align=\"right\" height=\"13\" valign=\"top\" | 9.2"]
["|  valign=\"top\" | de"]
["|style=\"background-color:#FFFF00\"  valign=\"top\" | German Wiki"]
["|style=\"background-color:#FFFF00\" align=\"right\"  valign=\"top\" | &nbsp;"]
["|style=\"background-color:#FFFF00\" align=\"right\"  valign=\"top\" | &nbsp;"]
["|style=\"background-color:#FFFF00\" align=\"right\"  valign=\"top\" | &nbsp;"]
["|style=\"background-color:#FFFF00\" align=\"right\"  valign=\"top\" | &nbsp;"]
["|style=\"background-color:#ED6613\"  valign=\"top\" | always fill with information, just log in and add information "]
["|style=\"background-color:#C2D69A\"  valign=\"top\" | everybody"]
["|style=\"background-color:#EAF1DD\" align=\"right\"  valign=\"top\" | &nbsp;"]
["|style=\"background-color:#C5D9F1\" align=\"right\"  valign=\"top\" | "]
[]
["|- "]
["| align=\"right\" height=\"13\" valign=\"top\" | 9.3"]
["|  valign=\"top\" | en"]
["|style=\"background-color:#FFFF00\"  valign=\"top\" | English Wiki"]
["|style=\"background-color:#FFFF00\" align=\"right\"  valign=\"top\" | &nbsp;"]
["|style=\"background-color:#FFFF00\" align=\"right\"  valign=\"top\" | &nbsp;"]
["|style=\"background-color:#FFFF00\" align=\"right\"  valign=\"top\" | &nbsp;"]
["|style=\"background-color:#FFFF00\" align=\"right\"  valign=\"top\" | &nbsp;"]
["|style=\"background-color:#ED6613\"  valign=\"top\" | necessary, or is german wiki with translation link ok? (this is without dopple editing of textes)"]
["|style=\"background-color:#C2D69A\" align=\"right\"  valign=\"top\" | &nbsp;"]
["|style=\"background-color:#EAF1DD\" align=\"right\"  valign=\"top\" | &nbsp;"]
["|style=\"background-color:#C5D9F1\"  valign=\"top\" | http://botf2.star-trek-games.com/viewtopic.php?f=14&t=4209"]
[]
["|- "]
["| align=\"right\" height=\"13\" valign=\"top\" | 9.4"]
["| align=\"right\"  valign=\"top\" | &nbsp;"]
["|style=\"background-color:#FFFF00\"  valign=\"top\" | Facebook"]
["|style=\"background-color:#FFFF00\" align=\"right\"  valign=\"top\" | &nbsp;"]
["|style=\"background-color:#FFFF00\" align=\"right\"  valign=\"top\" | &nbsp;"]
["|style=\"background-color:#FFFF00\" align=\"right\"  valign=\"top\" | &nbsp;"]
["|style=\"background-color:#FFFF00\" align=\"right\"  valign=\"top\" | &nbsp;"]
["|style=\"background-color:#ED6613\" align=\"right\"  valign=\"top\" | &nbsp;"]
["|style=\"background-color:#C2D69A\"  valign=\"top\" | ??? / rainer"]
["|style=\"background-color:#EAF1DD\"  valign=\"top\" | ???"]
["|style=\"background-color:#C5D9F1\"  valign=\"top\" | http://de-de.facebook.com/pages/Birth-of-the-Empires/114690708606169?sk=wall"]
[]
["|- "]
["| align=\"right\" height=\"13\" valign=\"top\" | 9.5"]
["| align=\"right\"  valign=\"top\" | &nbsp;"]
["|style=\"background-color:#FFFF00\"  valign=\"top\" | Google"]
["|style=\"background-color:#FFFF00\" align=\"right\"  valign=\"top\" | &nbsp;"]
["|style=\"background-color:#FFFF00\" align=\"right\"  valign=\"top\" | &nbsp;"]
["|style=\"background-color:#FFFF00\" align=\"right\"  valign=\"top\" | &nbsp;"]
["|style=\"background-color:#FFFF00\" align=\"right\"  valign=\"top\" | &nbsp;"]
["|style=\"background-color:#ED6613\" align=\"right\"  valign=\"top\" | &nbsp;"]
["|style=\"background-color:#C2D69A\"  valign=\"top\" | rainer"]
["|style=\"background-color:#EAF1DD\" align=\"right\"  valign=\"top\" | &nbsp;"]
["|style=\"background-color:#C5D9F1\"  valign=\"top\" | http://bote-forum.square7.ch/phpBB3/viewtopic.php?f=36&t=767"]
[]
["|- "]
["| align=\"right\" height=\"13\" valign=\"top\" | 9.6"]
["| align=\"right\"  valign=\"top\" | &nbsp;"]
["|style=\"background-color:#FFFF00\"  valign=\"top\" | Some Download-Amounts"]
["|style=\"background-color:#FFFF00\" align=\"right\"  valign=\"top\" | &nbsp;"]
["|style=\"background-color:#FFFF00\" align=\"right\"  valign=\"top\" | &nbsp;"]
["|style=\"background-color:#FFFF00\" align=\"right\"  valign=\"top\" | &nbsp;"]
["|style=\"background-color:#FFFF00\" align=\"right\"  valign=\"top\" | &nbsp;"]
["|style=\"background-color:#ED6613\" align=\"right\"  valign=\"top\" | &nbsp;"]
["|style=\"background-color:#C2D69A\" align=\"right\"  valign=\"top\" | &nbsp;"]
["|style=\"background-color:#EAF1DD\" align=\"right\"  valign=\"top\" | &nbsp;"]
["|style=\"background-color:#C5D9F1\" align=\"right\"  valign=\"top\" | "]
[]
["|-   valign=\"top\""]
["| align=\"right\" height=\"13\" | 16"]
["| align=\"right\" | &nbsp;"]
["|style=\"background-color:#FFFF00\" | VideoTeaser"]
["|style=\"background-color:#FFFF00\" align=\"right\" | &nbsp;"]
["|style=\"background-color:#FFFF00\" align=\"right\" | &nbsp;"]
["|style=\"background-color:#FFFF00\" align=\"right\" | &nbsp;"]
["|style=\"background-color:#FFFF00\" align=\"right\" | &nbsp;"]
["|style=\"background-color:#ED6613\" align=\"right\" | &nbsp;"]
["|style=\"background-color:#C2D69A\" align=\"right\" | &nbsp;"]
["|style=\"background-color:#EAF1DD\" align=\"right\" | &nbsp;"]
["|style=\"background-color:#C5D9F1\" align=\"right\" | "]
[]
["|- "]
["| align=\"right\" height=\"13\" valign=\"top\" | 10"]
["| align=\"right\"  valign=\"top\" | &nbsp;"]
["|style=\"background-color:#FFFF00\"  valign=\"top\" | Hotkeys+Mouse"]
["|style=\"background-color:#FFFF00\" align=\"right\"  valign=\"top\" | &nbsp;"]
["|style=\"background-color:#FFFF00\" align=\"right\"  valign=\"top\" | &nbsp;"]
["|style=\"background-color:#FFFF00\" align=\"right\"  valign=\"top\" | &nbsp;"]
["|style=\"background-color:#FFFF00\" align=\"right\"  valign=\"top\" | &nbsp;"]
["|style=\"background-color:#ED6613\" align=\"right\"  valign=\"top\" | &nbsp;"]
["|style=\"background-color:#C2D69A\" align=\"right\"  valign=\"top\" | &nbsp;"]
["|style=\"background-color:#EAF1DD\" align=\"right\"  valign=\"top\" | &nbsp;"]
["|style=\"background-color:#C5D9F1\"  valign=\"top\" | http://bote-forum.square7.ch/phpBB3/viewtopic.php?f=37&t=1514"]
[]
["|}"]

{"sheet":"Daten","index":1,"n_rows":19,"n_cols":6,"rows_kept":19,"cut":false,"hidden":false,"merged":[]}
["Nr","Race","Mine","Industry need","Production","Tech level"]
[1,"1 Terraner/Humans ","Primitive Kristallmine",931,30,5]
[2,"2 Hanuhr/Heyoun ","Typ 1 Kristallmine",1480,50,7]
[3,"3 Khayrin/Khaoron ","Typ 2 Kristallmine",2385,70,9]
[4,"4 Rotharianer/Rotharians ","Primitive Kristallmine",809,27,5]
[5,"5 Cartarer/Cartare ","Typ 1 Kristallmine",1286,45,7]
[6,"6 Omega-Allianz/Omega-Alliance","Typ 2 Kristallmine",2073,63,9]
[7,"1 Terraner/Humans ","Primitive Kristallmine",972,33,5]
[8,"2 Hanuhr/Heyoun ","Klasse 1 Kristallmine",1545,55,7]
[9,"3 Khayrin/Khaoron ","Klasse 2 Kristallmine",2489,77,9]
[10,"4 Rotharianer/Rotharians ","Primitive Kristallmine",850,26,5]
[11,"5 Cartarer/Cartare ","Typ I Kristallmine",1351,43,7]
[12,"6 Omega-Allianz/Omega-Alliance","Typ II Kristallmine",2177,60,9]
[13,"1 Terraner/Humans ","Primitive Kristallmine",1012,32,5]
[14,"2 Hanuhr/Heyoun ","Typ 1 Kristallmine",1609,53,7]
[15,"3 Khayrin/Khaoron ","Typ 2 Kristallmine",2593,74,9]
[16,"4 Rotharianer/Rotharians ","Primitive Kristallmine",890,28,5]
[17,"5 Cartarer/Cartare ","Typ 1 Kristallmine",1415,47,7]
[18,"6 Omega-Allianz/Omega-Alliance","Typ 2 Kristallmine",2281,66,9]

{"sheet":"Anleitung","index":2,"n_rows":3,"n_cols":1,"rows_kept":3,"cut":false,"hidden":false,"merged":[]}
["Daten in Tabelle Daten eintragen, die gewünschte Daten markieren(!), dann ALT+F8 und dann ALT+A (das Makro ausführen), ab dem zweiten(!) Mal 1x OK, um die erste Wiki-Tabelle zu löschen, dann Inhalt von WikiOutput nach Wiki kopieren."]
[]
["Makro-Ausführung: Bei mir muß ich die Datei nochmal öffnen und oberhalb Zeile 1 dann unter Optionen die Makros aktivieren"]

{"sheet":"Tabelle1","index":3,"n_rows":35,"n_cols":4,"rows_kept":35,"cut":false,"hidden":false,"merged":[]}
["Bereich","Befehl","Bemerkung","zugehöriger Befehl (Start/Ende der Aktion)"]
["INFO","storing savegame","Speichern eines Spiel mit Angabe des Pfades"]
["INFO","Begin preparing game data...","Start eines Spieles (ab Runde 1)","Preparing game data ready..."]
["INFO","Preparing game data ready...",null,"Begin preparing game data..."]
["INFO","Server is sending NextRoundData to client...","Zu Rundenbeginn und -ende werden alle 6 Spieler abgefragt/informiert/Daten übertragen","... serialization of NextRoundData succesfull"]
["INFO","... serialization of NextRoundData succesfull","Zu Rundenbeginn und -ende werden alle 6 Spieler abgefragt/informiert/Daten übertragen","Server is sending NextRoundData to client..."]
["INFO","Client is receiving NextRoundData from server...","Der jeweilige Spieler erhält die jeweiligen Daten","... serialization of NextRoundData succesfull"]
["INFO","... serialization of NextRoundData succesfull","Der jeweilige Spieler erhält die jeweiligen Daten","Client is receiving NextRoundData from server..."]
["INFO","CNetworkHandler::OnNextRound ready","Alle sind bereit für die nächste Runde ??"]
["INFO","Init sound ready...","Soundausgabe ist bereit"]
["INFO","Client x sending EndOfRoundData to server...","Client x sendet \"Runde beenden\"","... serialization of RoundEndData succesfull"]
["INFO","... serialization of RoundEndData succesfull","Client x sendet \"Runde beenden\"","1.) Client x sending EndOfRoundData to server…\n2.) Server receiving EndOfRoundData from client x..."]
["INFO","START NEXT ROUND (round: x)","Beginn der nächsten Runde (Runden-Nummer in Klammern)","NEXT ROUND calculation successfull"]
["INFO","NEXT ROUND calculation successfull","Berechnung der nächsten Runde erfolgreich (nach \"Rundenende\")","START NEXT ROUND (round: x)"]
["INFO","Server receiving EndOfRoundData from client x...","erhält Daten vom Client-Spieler","... serialization of RoundEndData succesfull"]
["INFO","Race MAJORx: global attack sector is -1/-1","Definition der Variablen löschen (-1/-1 = Standard null)"]
["INFO","Race MAJORx: global bombard sector is -1/-1","Definition der Variablen löschen (-1/-1 = Standard null)"]
[null,"Race MAJORx: ship 'x' maybe has near offensive target 5/11","Angriffsziel entdeckt"]
[null,"Eintrag","Bemerkung"]
["AIPrios.cpp","CAIPrios::CalcShipPrios() begin... "]
["AIPrios.cpp","CAIPrios::CalcShipPrios(): max Combatship Priority is: 14919"]
["AIPrios.cpp","Calc Shippowers: Race: MAJOR6 has a complete shippower of 8152 - all shippower is 8152"]
["AIPrios.cpp","Calc Priorities: Race: MAJOR6 - CombatShipPrio: 3 - ColoshipPrio: 4 - TransportPrio: 8"]
["AIPrios.cpp","Number of shiptypes: Race: MAJOR6 - Colonyships: 12 - Transporthips: 1"]
["AIPrios.cpp","CAIPrios::CalcShipPrios() ... ready"]
[null,"Eintrag","Bemerkung"]
["IntelAI.cpp","Intel-AI: Intel Prio of MAJOR6 is 3"]
["IntelAI.cpp","Intel-AI: assigned intel victim of MAJOR2 is MAJOR5"]
["IntelAI.cpp","Intel-AI: our SP: 76 - enemies SP: 189"]
[null,"Eintrag","Bemerkung"]
["MainFrm.cpp","MYTRACE(MT::LEVEL_INFO, \"Getting Message to UpdateViews...\");"]
["MainFrm.cpp","MYTRACE(MT::LEVEL_INFO, \"Updating all Views done\\n\");"]
["MainFrm.cpp","MYTRACE(MT::LEVEL_INFO, \"Getting Message to Show CombatView...\");"]
["MainFrm.cpp","MYTRACE(MT::LEVEL_INFO, \"Showing CombatView\\n\");"]
["MainFrm.cpp","MYTRACE(MT::LEVEL_WARNING, \"AddToTooltip not possible: tooltip hwnd is null\\n\");"]

{"sheet":"Tabelle2","index":4,"n_rows":11,"n_cols":3,"rows_kept":11,"cut":false,"hidden":false,"merged":[]}
[null,"Eintrag","Bemerkung"]
[1,"Combat in Sector 18/11"]
[2,"Server is sending CombatData to client..."]
[3,"Client is receiving CombatData from server..."]
[4,"Getting Message to Show CombatView..."]
[5,"Showing CombatView"]
[6,"Client 0 sending CombatData to server..."]
[7,"Server receiving CombatData from client 1..."]
[8,"COMBAT ROUND"]
[9,"Race MAJOR1 is involved in combat. Tactic: User"]
[10,"Race MAJOR6 is involved in combat. Tactic: Auto"]

{"sheet":"A-Z","index":5,"n_rows":202,"n_cols":4,"rows_kept":202,"cut":false,"hidden":false,"merged":[]}
["a","English","German","English"]
["AAR ‎",{"$f":"\"[[\"&A2&\"|\"&D2&\"]]\"","v":"[[AAR ‎|AAR]]"},{"$f":"\"[[\"&A2&\"]]\"","v":"[[AAR ‎]]"},"AAR"]
["Annehmen","[[Eingang #Annehmen|Accept‎]]","[[Eingang #Annehmen|Annehmen‎]]","Accept"]
["Bündnis ‎","[[Bündnis ‎|Affiliation]]","[[Bündnis ‎]]","Affiliation"]
["KI (Künstliche Intelligenz)","[[KI (Künstliche Intelligenz)|AI]]","[[KI (Künstliche Intelligenz)]]","AI"]
["Anomalien ‎","[[Anomalien ‎|Anomalies]]","[[Anomalien ‎]]","Anomalies"]
["Zuteilung ‎","[[Zuteilung ‎|Assignment]]","[[Zuteilung ‎]]","Assignment"]
["Angriff ‎","[[Angriff ‎|Attack]]","[[Angriff ‎]]","Attack"]
["Systemangriff|Eroberung anderer Systeme","[[Systemangriff|Eroberung anderer Systeme|Attack System]]","[[Systemangriff|Eroberung anderer Systeme]]","Attack System"]
["Anschlag ‎","[[Anschlag ‎|Attempt]]","[[Anschlag ‎]]","Attempt"]
["Gesinnung ‎","[[Gesinnung ‎|Attitude ??]]","[[Gesinnung ‎]]","Attitude ??"]
["Autobau ‎","[[Autobau ‎|Automatic building]]","[[Autobau ‎]]","Automatic building"]
["Meiden ‎","[[Meiden ‎|Avoid]]","[[Meiden ‎]]","Avoid"]
["Kaserne|Truppen","[[Kaserne|Truppen|Barracks]]","[[Kaserne|Truppen]]","Barracks"]
["Kampf|Raumschlachten","[[Kampf|Raumschlachten|Battle]]","[[Kampf|Raumschlachten]]","Battle"]
["Beam ‎","[[Beam ‎|Beam]]","[[Beam ‎]]","Beam"]
["Biogenetik ‎","[[Biogenetik ‎|Bio-Tech]]","[[Biogenetik ‎]]","Bio-Tech"]
["Blockade von System ‎","[[Blockade von System ‎|Blockade]]","[[Blockade von System ‎]]","Blockade"]
["Boj-Datei ‎","[[Boj-Datei ‎|boj-Files]]","[[Boj-Datei ‎]]","boj-Files"]
["Bop-Datei ‎","[[Bop-Datei ‎|bop-Files]]","[[Bop-Datei ‎]]","bop-Files"]
["Bote.ini ‎","[[Bote.ini ‎|Bote.ini]]","[[Bote.ini ‎]]","Bote.ini"]
["BotE.log ‎","[[BotE.log ‎|BotE.log]]","[[BotE.log ‎]]","BotE.log"]
["Bestechung ‎","[[Bestechung ‎|Bribe]]","[[Bestechung ‎]]","Bribe"]
["Baumenü ‎","[[Baumenü ‎|Build list]]","[[Baumenü ‎]]","Build list"]
["BuildingEditor ‎","[[BuildingEditor ‎|BuildingEditor]]","[[BuildingEditor ‎]]","BuildingEditor"]
["Buildings.data ‎","[[Buildings.data ‎|Buildings.data ]]","[[Buildings.data ‎]]","Buildings.data "]
["Changelog ‎","[[Changelog ‎|Changelog]]","[[Changelog ‎]]","Changelog"]
["Tarnen ‎","[[Tarnen ‎|Cloak]]","[[Tarnen ‎]]","Cloak"]
["Kolonisieren|Terraformen und Kolonisieren von Systemen","[[Kolonisieren|Terraformen und Kolonisieren von Systemen|Colonising]]","[[Kolonisieren|Terraformen und Kolonisieren von Systemen]]","Colonising"]
["Schiffskampf|Raumschlachten","[[Schiffskampf|Raumschlachten|Combat]]","[[Schiffskampf|Raumschlachten]]","Combat"]
["Raumschlachten ‎","[[Raumschlachten ‎|Combat ??]]","[[Raumschlachten ‎]]","Combat ??"]
["CombatSimulator ‎","[[CombatSimulator ‎|CombatSimulator]]","[[CombatSimulator ‎]]","CombatSimulator"]
["Computertechnik ‎","[[Computertechnik ‎|Computer-Tech]]","[[Computertechnik ‎]]","Computer-Tech"]
["Eroberung anderer Systeme ‎","[[Eroberung anderer Systeme ‎|Conquest of systems]]","[[Eroberung anderer Systeme ‎]]","Conquest of systems"]
["Bautechnik ‎",{"$f":"\"[[\"&A35&\"|\"&D35&\"]]\"","v":"[[Bautechnik ‎|Construction-Tech]]"},{"$f":"\"[[\"&A35&\"]]\"","v":"[[Bautechnik ‎]]"},"Construction-Tech"]
["Kooperation ‎","[[Kooperation ‎|Co-operation]]","[[Kooperation ‎]]","Co-operation"]
["Urheberrecht ‎","[[Urheberrecht ‎|Copyright]]","[[Urheberrecht ‎]]","Copyright"]
["Credits ‎","[[Credits ‎|Credits]]","[[Credits ‎]]","Credits"]
["Credits/Danksagung ‎","[[Credits/Danksagung ‎|Credits/Thanks to]]","[[Credits/Danksagung ‎]]","Credits/Thanks to"]
["Kristall ‎","[[Kristall ‎|Crystal]]","[[Kristall ‎]]","Crystal"]
["Ablehnen",{"$f":"\"[[Eingang#\"&A41&\"|\"&D41&\"]]\"","v":"[[Eingang#Ablehnen|Decline]]"},{"$f":"\"[[Eingang#\"&A41&\"]]\"","v":"[[Eingang#Ablehnen]]"},"Decline"]
["Verteidigung ‎","[[Verteidigung ‎|Defence]]","[[Verteidigung ‎]]","Defence"]
["Schiffsabwehr|Verteidigung","[[Schiffsabwehr|Verteidigung|Defence of Ships]]","[[Schiffsabwehr|Verteidigung]]","Defence of Ships"]
["Verteidigungspakt ‎","[[Verteidigungspakt ‎|Defence Pact]]","[[Verteidigungspakt ‎]]","Defence Pact"]
["Forderung ‎","[[Forderung ‎|Demand]]","[[Forderung ‎]]","Demand"]
["Demografie ‎","[[Demografie ‎|Demographics]]","[[Demografie ‎]]","Demographics"]
["Deritium ‎","[[Deritium ‎|Deritium]]","[[Deritium ‎]]","Deritium"]
["Deuterium ‎","[[Deuterium ‎|Deuterium]]","[[Deuterium ‎]]","Deuterium"]
["Schwierigkeitsgrade ‎","[[Schwierigkeitsgrade ‎|Difficulty]]","[[Schwierigkeitsgrade ‎]]","Difficulty"]
["Diplomatie ‎","[[Diplomatie ‎|Diplomacy]]","[[Diplomatie ‎]]","Diplomacy"]
["Diplomatie–Bildschirm ‎","[[Diplomatie–Bildschirm ‎|Diplomacy Screen]]","[[Diplomatie–Bildschirm ‎]]","Diplomacy Screen"]
["Verteiler ‎","[[Verteiler ‎|Distribution Facility]]","[[Verteiler ‎]]","Distribution Facility"]
["Download ‎","[[Download ‎|Download]]","[[Download ‎]]","Download"]
["Duranium ‎","[[Duranium ‎|Duranium]]","[[Duranium ‎]]","Duranium"]
["Editor-Programme ‎","[[Editor-Programme ‎|Editor Programs]]","[[Editor-Programme ‎]]","Editor Programs"]
["Imperiums-Bildschirm ‎","[[Imperiums-Bildschirm ‎|Empire Screen]]","[[Imperiums-Bildschirm ‎]]","Empire Screen"]
["Imperien ‎","[[Imperien ‎|Empires]]","[[Imperien ‎]]","Empires"]
["Rundenende ‎","[[Rundenende ‎|End Turn]]","[[Rundenende ‎]]","End Turn"]
["Energie ‎","[[Energie ‎|Energy]]","[[Energie ‎]]","Energy"]
["Energietechnik ‎","[[Energietechnik ‎|Energy-Tech]]","[[Energietechnik ‎]]","Energy-Tech"]
["Spionage ‎","[[Spionage ‎|Espionage]]","[[Spionage ‎]]","Espionage"]
["Event ‎","[[Event ‎|Event]]","[[Event ‎]]","Event"]
["Börse ‎","[[Börse ‎|Exchange]]","[[Börse ‎]]","Exchange"]
["FAQ's ‎","[[FAQ's ‎|FAQ]]","[[FAQ's ‎]]","FAQ"]
["Weitere Dateien ‎","[[Weitere Dateien ‎|Files ]]","[[Weitere Dateien ‎]]","Files "]
["Dateien|Files","[[Dateien|Files|Files ]]","[[Dateien|Files]]","Files "]
["Erste Schritte ‎","[[Erste Schritte ‎|First Steps]]","[[Erste Schritte ‎]]","First Steps"]
["Flaggschiff ‎",{"$f":"\"[[\"&A68&\"|\"&D68&\"]]\"","v":"[[Flaggschiff ‎|Flagship]]"},{"$f":"\"[[\"&A68&\"]]\"","v":"[[Flaggschiff ‎]]"},"Flagship"]
["Flotte|Gruppieren","[[Flotte|Gruppieren|Fleet]]","[[Flotte|Gruppieren]]","Fleet"]
["Nahrung ‎","[[Nahrung ‎|Food]]","[[Nahrung ‎]]","Food"]
["Freundschaft ‎","[[Freundschaft ‎|Friendship]]","[[Freundschaft ‎]]","Friendship"]
["Galaktischer Hauptbildschirm ‎","[[Galaktischer Hauptbildschirm ‎|Galaxy Screen]]","[[Galaktischer Hauptbildschirm ‎]]","Galaxy Screen"]
["Spielfeatures ‎","[[Spielfeatures ‎|Game Features]]","[[Spielfeatures ‎]]","Game Features"]
["Game Settings|Bote.ini","[[Game Settings|Bote.ini|Game Settings]]","[[Game Settings|Bote.ini]]","Game Settings"]
["Geschenk ‎","[[Geschenk ‎|Gift]]","[[Geschenk ‎]]","Gift"]
["GIMP einrichten und bedienen ‎","[[GIMP einrichten und bedienen ‎|GIMP using]]","[[GIMP einrichten und bedienen ‎]]","GIMP using"]
["Grafiken bearbeiten ‎","[[Grafiken bearbeiten ‎|Graphics drawing]]","[[Grafiken bearbeiten ‎]]","Graphics drawing"]
["Gruppieren ‎","[[Gruppieren ‎|Group]]","[[Gruppieren ‎]]","Group"]
["Hauptseite ‎","[[Hauptseite ‎|Home Site]]","[[Hauptseite ‎]]","Home Site"]
["Hotkeys","[[Hotkeys|Hotkeys]]","[[Hotkeys]]","Hotkeys"]
["Industrie ‎","[[Industrie ‎|Industry]]","[[Industrie ‎]]","Industry"]
["Information ‎","[[Information ‎|Information]]","[[Information ‎]]","Information"]
["Geheimdienst ‎","[[Geheimdienst ‎|Intel]]","[[Geheimdienst ‎]]","Intel"]
["Geheimdienstpunkte ‎","[[Geheimdienstpunkte ‎|Intel Points]]","[[Geheimdienstpunkte ‎]]","Intel Points"]
["Geheimdienst–Bildschirm ‎","[[Geheimdienst–Bildschirm ‎|Intel Screen]]","[[Geheimdienst–Bildschirm ‎]]","Intel Screen"]
["Innere Sicherheit ‎","[[Innere Sicherheit ‎|Internal Security]]","[[Innere Sicherheit ‎]]","Internal Security"]
["Stellare Lager ‎","[[Stellare Lager ‎|Interstellar storage]]","[[Stellare Lager ‎]]","Interstellar storage"]
["Iridium ‎","[[Iridium ‎|Iridium]]","[[Iridium ‎]]","Iridium"]
["Sprachen ‎","[[Sprachen ‎|Languages]]","[[Sprachen ‎]]","Languages"]
["Laden ‎","[[Laden ‎|Load]]","[[Laden ‎]]","Load"]
["Unterhaltskosten ‎","[[Unterhaltskosten ‎|Maintenance Costs]]","[[Unterhaltskosten ‎]]","Maintenance Costs"]
["Major-Rassen ‎","[[Major-Rassen ‎|Major Races]]","[[Major-Rassen ‎]]","Major Races"]
["MajorRaces.data ‎","[[MajorRaces.data ‎|MajorRaces.data]]","[[MajorRaces.data ‎]]","MajorRaces.data"]
["Handbücher ‎","[[Handbücher ‎|Manuals ]]","[[Handbücher ‎]]","Manuals "]
["Mitgliedschaft ‎","[[Mitgliedschaft ‎|Membership]]","[[Mitgliedschaft ‎]]","Membership"]
["Menüleiste ‎","[[Menüleiste ‎|Menue Line]]","[[Menüleiste ‎]]","Menue Line"]
["MiniMap|Galaktischer Hauptbildschirm","[[MiniMap|Galaktischer Hauptbildschirm|MiniMap]]","[[MiniMap|Galaktischer Hauptbildschirm]]","MiniMap"]
["Kleine Völker ‎","[[Kleine Völker ‎|Minor Races]]","[[Kleine Völker ‎]]","Minor Races"]
["MinorraceEditor ‎","[[MinorraceEditor ‎|MinorRaceEditor]]","[[MinorraceEditor ‎]]","MinorRaceEditor"]
["MinorRaces.data|MinorraceEditor",{"$f":"\"[[\"&A100&\"|\"&D100&\"]]\"","v":"[[MinorRaces.data|MinorraceEditor|MinorRaces.data]]"},{"$f":"\"[[\"&A100&\"]]\"","v":"[[MinorRaces.data|MinorraceEditor]]"},"MinorRaces.data"]
["Monopole ‎","[[Monopole ‎|Monopoly]]","[[Monopole ‎]]","Monopoly"]
["Moral.data ‎","[[Moral.data ‎|Moral.data]]","[[Moral.data ‎]]","Moral.data"]
["Moral ‎","[[Moral ‎|Morale]]","[[Moral ‎]]","Morale"]
["MoralEvents.data ‎","[[MoralEvents.data ‎|MoralEvents.data]]","[[MoralEvents.data ‎]]","MoralEvents.data"]
["Multiplaying ‎","[[Multiplaying ‎|Multiplaying]]","[[Multiplaying ‎]]","Multiplaying"]
["NaviCon ‎","[[NaviCon ‎|NaviCon]]","[[NaviCon ‎]]","NaviCon"]
["Erster Kontakt ‎","[[Erster Kontakt ‎|New Contact]]","[[Erster Kontakt ‎]]","New Contact"]
["Nachrichten und Informationen ‎","[[Nachrichten und Informationen ‎|News and Information]]","[[Nachrichten und Informationen ‎]]","News and Information"]
["Nichtangriff ‎","[[Nichtangriff ‎|Non-Agression]]","[[Nichtangriff ‎]]","Non-Agression"]
["Nichtangriffspakt ‎","[[Nichtangriffspakt ‎|Non-Agression Pact]]","[[Nichtangriffspakt ‎]]","Non-Agression Pact"]
["Angebote ‎","[[Angebote ‎|Offers]]","[[Angebote ‎]]","Offers"]
["Online Gaming ‎","[[Online Gaming ‎|Online Gaming]]","[[Online Gaming ‎]]","Online Gaming"]
["Systemunabhängige Ressourcen ‎","[[Systemunabhängige Ressourcen ‎|Open-System Resources]]","[[Systemunabhängige Ressourcen ‎]]","Open-System Resources"]
["Befehlsmenü ‎","[[Befehlsmenü ‎|Orders]]","[[Befehlsmenü ‎]]","Orders"]
["Außenposten ‎","[[Außenposten ‎|Outposts]]","[[Außenposten ‎]]","Outposts"]
["Planetenklassen ‎","[[Planetenklassen ‎|Planets Classes]]","[[Planetenklassen ‎]]","Planets Classes"]
["Bevölkerung ‎","[[Bevölkerung ‎|Population]]","[[Bevölkerung ‎]]","Population"]
["Voreinstellungen ‎","[[Voreinstellungen ‎|Pre Settings]]","[[Voreinstellungen ‎]]","Pre Settings"]
["Probleme beim Registrieren oder Anmelden mit dem Benutzernamen ‎","[[Probleme beim Registrieren oder Anmelden mit dem Benutzernamen ‎|Problems at Log in]]","[[Probleme beim Registrieren oder Anmelden mit dem Benutzernamen ‎]]","Problems at Log in"]
["Probleme mit anderen Betriebssystemen ‎","[[Probleme mit anderen Betriebssystemen ‎|Problems with other OS like Linux]]","[[Probleme mit anderen Betriebssystemen ‎]]","Problems with other OS like Linux"]
["Arbeiter ‎","[[Arbeiter ‎|Production]]","[[Arbeiter ‎]]","Production"]
["Programm-Code ‎","[[Programm-Code ‎|Programm Code]]","[[Programm-Code ‎]]","Programm Code"]
["Projekt/Einleitung ‎","[[Projekt/Einleitung ‎|Project]]","[[Projekt/Einleitung ‎]]","Project"]
["Antriebstechnik ‎","[[Antriebstechnik ‎|Propulsion-Tech]]","[[Antriebstechnik ‎]]","Propulsion-Tech"]
["Unterstützung ‎","[[Unterstützung ‎|Public Support]]","[[Unterstützung ‎]]","Public Support"]
["Rasseninformation ‎","[[Rasseninformation ‎|Race Information]]","[[Rasseninformation ‎]]","Race Information"]
["Reichweite ‎","[[Reichweite ‎|Range]]","[[Reichweite ‎]]","Range"]
["Eingang ‎","[[Eingang ‎|Received]]","[[Eingang ‎]]","Received"]
["Berichte ‎","[[Berichte ‎|Reports]]","[[Berichte ‎]]","Reports"]
["Forschung ‎","[[Forschung ‎|Research]]","[[Forschung ‎]]","Research"]
["Normale Forschung ‎","[[Normale Forschung ‎|Research (normal)]]","[[Normale Forschung ‎]]","Research (normal)"]
["Forschungspunkte ‎",{"$f":"\"[[\"&A132&\"|\"&D132&\"]]\"","v":"[[Forschungspunkte ‎|Research Points]]"},{"$f":"\"[[\"&A132&\"]]\"","v":"[[Forschungspunkte ‎]]"},"Research Points"]
["Forschungs–Bildschirm ‎","[[Forschungs–Bildschirm ‎|Research Screen]]","[[Forschungs–Bildschirm ‎]]","Research Screen"]
["Spezialforschung|Forschung","[[Spezialforschung|Forschung|Research Special]]","[[Spezialforschung|Forschung]]","Research Special"]
["Depots ‎","[[Depots ‎|Reserve]]","[[Depots ‎]]","Reserve"]
["Ressource ‎","[[Ressource ‎|Resource]]","[[Ressource ‎]]","Resource"]
["Ressourcenrouten ‎","[[Ressourcenrouten ‎|Resource Routes]]","[[Ressourcenrouten ‎]]","Resource Routes"]
["Ressourcen in BotE|Ressource","[[Ressourcen in BotE|Ressource|Resources]]","[[Ressourcen in BotE|Ressource]]","Resources"]
["Rückzug ‎","[[Rückzug ‎|Retreat]]","[[Rückzug ‎]]","Retreat"]
["Sabotage ‎","[[Sabotage ‎|Sabotage]]","[[Sabotage ‎]]","Sabotage"]
["Speichern ‎","[[Speichern ‎|Save]]","[[Speichern ‎]]","Save"]
["Scan ‎","[[Scan ‎|Scanning]]","[[Scan ‎]]","Scanning"]
["Demontage ‎","[[Demontage ‎|Scrap]]","[[Demontage ‎]]","Scrap"]
["Abriss von Bauwerken ‎","[[Abriss von Bauwerken ‎|Scraping Buildings]]","[[Abriss von Bauwerken ‎]]","Scraping Buildings"]
["Bilder-Serie ‎","[[Bilder-Serie ‎|Screens]]","[[Bilder-Serie ‎]]","Screens"]
["Sektor ‎","[[Sektor ‎|Sector]]","[[Sektor ‎]]","Sector"]
["Schilde",{"$f":"\"[[\"&A147&\"|\"&D147&\"]]\"","v":"[[Schilde|Shields]]"},{"$f":"\"[[\"&A147&\"]]\"","v":"[[Schilde]]"},"Shields"]
["Schiffsaufgaben ‎","[[Schiffsaufgaben ‎|Ship Assignments]]","[[Schiffsaufgaben ‎]]","Ship Assignments"]
["Schiffsdesign ‎","[[Schiffsdesign ‎|Ship Design]]","[[Schiffsdesign ‎]]","Ship Design"]
["Übersicht aller Schiffe ‎","[[Übersicht aller Schiffe ‎|Ship Overview]]","[[Übersicht aller Schiffe ‎]]","Ship Overview"]
["ShipEditor ‎","[[ShipEditor ‎|ShipEditor]]","[[ShipEditor ‎]]","ShipEditor"]
["Shiplist.data|ShipEditor","[[Shiplist.data|ShipEditor|Shiplist.data]]","[[Shiplist.data|ShipEditor]]","Shiplist.data"]
["Raumschiffe ‎","[[Raumschiffe ‎|Ships]]","[[Raumschiffe ‎]]","Ships"]
["Schiffe kommandieren ‎","[[Schiffe kommandieren ‎|Ships controlling]]","[[Schiffe kommandieren ‎]]","Ships controlling"]
["Schiffswerft ‎","[[Schiffswerft ‎|Shipyard]]","[[Schiffswerft ‎]]","Shipyard"]
["Werft|Schiffswerft","[[Werft|Schiffswerft|Shipyard]]","[[Werft|Schiffswerft]]","Shipyard"]
["Raumdock ‎","[[Raumdock ‎|Space Dock ??]]","[[Raumdock ‎]]","Space Dock ??"]
["Specialtechs.data ‎","[[Specialtechs.data ‎|Specialtechs.data]]","[[Specialtechs.data ‎]]","Specialtechs.data"]
["Geschwindigkeit ‎","[[Geschwindigkeit ‎|Speed]]","[[Geschwindigkeit ‎]]","Speed"]
["Sternenbasis ‎","[[Sternenbasis ‎|Starbases]]","[[Sternenbasis ‎]]","Starbases"]
["Sterne ‎","[[Sterne ‎|Stars]]","[[Sterne ‎]]","Stars"]
["StartBuildings.data ‎","[[StartBuildings.data ‎|StartBuildings.data]]","[[StartBuildings.data ‎]]","StartBuildings.data"]
["StartShips.data ‎","[[StartShips.data ‎|Startships.data]]","[[StartShips.data ‎]]","Startships.data"]
["Storyline ‎","[[Storyline ‎|Storyline]]","[[Storyline ‎]]","Storyline"]
["StringTable.txt ‎",{"$f":"\"[[\"&A165&\"|\"&D165&\"]]\"","v":"[[StringTable.txt ‎|StringTable.txt]]"},{"$f":"\"[[\"&A165&\"]]\"","v":"[[StringTable.txt ‎]]"},"StringTable.txt"]
["Bauwerke ‎","[[Bauwerke ‎|Structures]]","[[Bauwerke ‎]]","Structures"]
["Umfrage ‎","[[Umfrage ‎|Surveys]]","[[Umfrage ‎]]","Surveys"]
["System ‎","[[System ‎|System]]","[[System ‎]]","System"]
["Übersicht aller Systeme ‎","[[Übersicht aller Systeme ‎|System Overview]]","[[Übersicht aller Systeme ‎]]","System Overview"]
["System–Bildschirm ‎","[[System–Bildschirm ‎|System Screen]]","[[System–Bildschirm ‎]]","System Screen"]
["Systeminterne Ressourcen ‎","[[Systeminterne Ressourcen ‎|System-internal Resources]]","[[Systeminterne Ressourcen ‎]]","System-internal Resources"]
["Systemvoraussetzungen ‎","[[Systemvoraussetzungen ‎|Technical System Requirements]]","[[Systemvoraussetzungen ‎]]","Technical System Requirements"]
["Techs.data ‎","[[Techs.data ‎|Techs.data]]","[[Techs.data ‎]]","Techs.data"]
["Nutzungsbedingungen ‎","[[Nutzungsbedingungen ‎|Terms of use]]","[[Nutzungsbedingungen ‎]]","Terms of use"]
["Tipps und Hinweise ‎","[[Tipps und Hinweise ‎|Tips]]","[[Tipps und Hinweise ‎]]","Tips"]
["Titan ‎","[[Titan ‎|Titan]]","[[Titan ‎]]","Titan"]
["ToDo's ‎","[[ToDo's ‎|ToDo's]]","[[ToDo's ‎]]","ToDo's"]
["Tooltip ‎","[[Tooltip ‎|Tootip]]","[[Tooltip ‎]]","Tootip"]
["Top 5 ‎","[[Top 5 ‎|Top 5]]","[[Top 5 ‎]]","Top 5"]
["Torpedos ‎","[[Torpedos ‎|Torpedo]]","[[Torpedos ‎]]","Torpedo"]
["Handel ‎","[[Handel ‎|Trade]]","[[Handel ‎]]","Trade"]
["Handelsvertrag ‎","[[Handelsvertrag ‎|Trade Agreement]]","[[Handelsvertrag ‎]]","Trade Agreement"]
["Handelsrouten ‎","[[Handelsrouten ‎|Trade Routes]]","[[Handelsrouten ‎]]","Trade Routes"]
["Handels-Bildschirm ‎","[[Handels-Bildschirm ‎|Trade Screen]]","[[Handels-Bildschirm ‎]]","Trade Screen"]
["Transfers ‎","[[Transfers ‎|Transfer]]","[[Transfers ‎]]","Transfer"]
["Transport ‎","[[Transport ‎|Transport]]","[[Transport ‎]]","Transport"]
["Truppen ‎","[[Truppen ‎|Troops]]","[[Truppen ‎]]","Troops"]
["Runde 1 ‎","[[Runde 1 ‎|Turn 1]]","[[Runde 1 ‎]]","Turn 1"]
["Runde 2 ‎","[[Runde 2 ‎|Turn 2]]","[[Runde 2 ‎]]","Turn 2"]
["Runde 3 ‎","[[Runde 3 ‎|Turn 3]]","[[Runde 3 ‎]]","Turn 3"]
["Versionshistorie ‎","[[Versionshistorie ‎|Version History]]","[[Versionshistorie ‎]]","Version History"]
["Siegbedingungen ‎","[[Siegbedingungen ‎|Victory Conditions]]","[[Siegbedingungen ‎]]","Victory Conditions"]
["Videos ‎","[[Videos ‎|Videos]]","[[Videos ‎]]","Videos"]
["Sprachausgabe ‎","[[Sprachausgabe ‎|Voices]]","[[Sprachausgabe ‎]]","Voices"]
["Krieg ‎","[[Krieg ‎|War]]","[[Krieg ‎]]","War"]
["Kriegspakt ‎","[[Kriegspakt ‎|War Pact]]","[[Kriegspakt ‎]]","War Pact"]
["Waffentechnik ‎",{"$f":"\"[[\"&A197&\"|\"&D197&\"]]\"","v":"[[Waffentechnik ‎|Weapon-Tech]]"},{"$f":"\"[[\"&A197&\"]]\"","v":"[[Waffentechnik ‎]]"},"Weapon-Tech"]
["Wiki für Anfänger ‎","[[Wiki für Anfänger ‎|Wiki for Beginners]]","[[Wiki für Anfänger ‎]]","Wiki for Beginners"]
["Windows-Probleme ‎","[[Windows-Probleme ‎|Windows Problems]]","[[Windows-Probleme ‎]]","Windows Problems"]
["World Wide Web|Download","[[World Wide Web|Download|World Wide Web|Download]]","[[World Wide Web|Download]]","World Wide Web|Download"]
["Bedienung und Steuerung des Spiels ‎","[[Bedienung und Steuerung des Spiels ‎|]]","[[Bedienung und Steuerung des Spiels ‎]]"]
["Terraformen und Kolonisieren von Systemen ‎","[[Terraformen und Kolonisieren von Systemen ‎|]]","[[Terraformen und Kolonisieren von Systemen ‎]]"]

{"sheet":"RandomEvents","index":6,"n_rows":0,"n_cols":0,"rows_kept":0,"cut":false,"hidden":false,"merged":[]}

{"sheet":"ToDo","index":7,"n_rows":54,"n_cols":12,"rows_kept":54,"cut":false,"hidden":false,"merged":[]}
["Line","structure","en/de-Version","Topic1","Topic2","Topic3","Topic4","Topic5","ToDo/Status","actual staff","last staff","Link"]
[2,"1",null,"General Thread",null,null,null,null,"Helper wanted",null,null,"http://bote-forum.square7.ch/phpBB3/viewtopic.php?f=1&t=869"]
[3,"1.1",null,"Generally Missing Topics Thread",null,null,null,null,"General Missing Topics",null,null,"http://bote-forum.square7.ch/phpBB3/viewtopic.php?f=4&t=1564"]
[4,"2","en","Manual","English Translation",null,null,null,"missing",null,null,"http://bote-forum.square7.ch/wiki/index.php?title=Handbücher"]
[5,"2.1","e+d","QuickPlayGuide",null,null,null,null,null,null,null,"http://bote-forum.square7.ch/wiki/index.php?title=Erste_Schritte"]
[null,"2.2",null,"Tutorial-Modus",null,null,null,null,null,null,null,"http://bote-forum.square7.ch/phpBB3/viewtopic.php?f=38&t=1398"]
[null,"2.2",null,"Video-Tutorial",null,null,null,null,null,null,null,"http://bote-forum.square7.ch/phpBB3/viewtopic.php?f=10&t=1655"]
[6,"3",null,"Research",null,null,null,null,"Techlevel 11-14 (Techlevels are done, but e.g. missing buildings in buildings.data for 11-14)"]
[7,"4","e+d","Data","Buildings",null,null,null,"new buildings for tech levels 11-14"]
[8,"4.1","e+d","Data","Ships",null,null,null,"new ships for tech levels 11-14"]
[9,"4.1.1",null,"Data","Ships","Transport Ships",null,null,"data for quicker ships"]
[10,"4.1.2",null,"Data","Ships","Colony Ships",null,null,"data for quicker ships"]
[11,"5",null,"Random Events",null,null,null,null,null,"permutator and many others",null,"http://bote-forum.square7.ch/phpBB3/viewtopic.php?f=4&t=188"]
[12,"6",null,"Graphics","Skins",null,null,null,null,null,null,"http://bote-forum.square7.ch/wiki/index.php?title=Grafiken_bearbeiten"]
[13,"6.1.1",null,"Graphics","Skins","Major1",null,null,"done"]
[14,"6.1.2",null,"Graphics","Skins","Major2",null,null,"done"]
[15,"6.1.3",null,"Graphics","Skins","Major3",null,null,"done"]
[16,"6.1.4",null,"Graphics","Skins","Major4",null,null,"done"]
[17,"6.1.5",null,"Graphics","Skins","Major5",null,null,"done"]
[18,"6.1.6",null,"Graphics","Skins","Major6",null,null,"mostly done, details neccessary",null,"magicmot","a) http://bote-forum.square7.ch/phpBB3/viewtopic.php?f=25&t=1751&hilit=omega+skin\ni) http://bote-forum.square7.ch/phpBB3/viewtopic.php?f=8&t=763"]
[19,"6.2",null,"Graphics","Buildings",null,null,null,"make new ones or search in web and request free usage for BotE from copyright holder"]
[20,"6.3",null,"Graphics","Events",null,null,null,"make new ones or search in web and request free usage for BotE from copyright holder",null,null,"http://bote-forum.square7.ch/phpBB3/viewtopic.php?f=8&t=853"]
[21,"6.4",null,"Graphics","Races",null,null,null,"make new ones or search in web and request free usage for BotE from copyright holder"]
[22,"6.5",null,"Graphics","Ships",null,null,null,"make new ones or search in web and request free usage for BotE from copyright holder",null,null,"a) http://bote-forum.square7.ch/phpBB3/viewtopic.php?f=25&t=1356\nb) Aliens and Monster http://bote-forum.square7.ch/phpBB3/viewtopic.php?f=26&t=1347\ninternal: http://bote-forum.square7.ch/phpBB3/viewtopic.php?f=8&t=704"]
[23,"6.6",null,"Graphics","Symbols",null,null,null,"make new ones or search in web and request free usage for BotE from copyright holder"]
[24,"6.7",null,"Graphics","Troops",null,null,null,"make new ones or search in web and request free usage for BotE from copyright holder"]
[25,"7.1","en","Sounds","MajorRacesSounds",null,null,null,"quite ok"]
[25,"7.1","en","Sounds","MinorRacesSounds",null,null,null,"quite ok",null,null,"http://bote-forum.square7.ch/phpBB3/viewtopic.php?f=26&t=716"]
[25,"7.1","en","Sounds","English Sounds",null,null,null,"quite ok",null,null,"http://bote-forum.square7.ch/phpBB3/viewtopic.php?f=24&t=855"]
[26,"7.2","de","Sounds","German Sounds",null,null,null,"missing",null,null,"http://bote-forum.square7.ch/wiki/index.php?title=Sprachausgabe"]
[27,"8.1",null,"Programming","3D-CombatSimulator",null,null,null,null,"plotnik01",null,"a) http://bote-forum.square7.ch/phpBB3/viewtopic.php?f=14&t=382\nb) http://bote-forum.square7.ch/phpBB3/viewtopic.php?f=24&t=743"]
[28,"8.2",null,"Programming","MinorRaceEditor",null,null,null,null,"Revisor","SirP","internal: http://bote-forum.square7.ch/phpBB3/viewtopic.php?f=16&t=1590"]
[29,"8.3",null,"Programming","MiniMap ein-/ausklappen",null,null,null,"Umsetzung fraglich/offen",null,null,"http://bote-forum.square7.ch/phpBB3/viewtopic.php?f=37&t=1873"]
[30,"8.4",null,"Programming","Playtime",null,null,null,null,"Revisor?",null,"http://bote-forum.square7.ch/phpBB3/viewtopic.php?f=38&t=1415"]
[31,"8.5",null,"Programming","Spy (Spion)",null,null,null,null,null,null,"http://bote-forum.square7.ch/phpBB3/viewtopic.php?f=38&t=1602"]
[null,"8.6",null,"Programming","Diplomatist",null,null,null,null,null,null,"http://bote-forum.square7.ch/phpBB3/viewtopic.php?f=38&t=1602"]
[32,"8.7",null,"Programming","War ending new options"]
[null,"8.8",null,"Programming","Campaigns",null,null,null,null,null,null,"http://bote-forum.square7.ch/phpBB3/viewtopic.php?f=38&t=322"]
[null,"8.9",null,"Programming","Building-List expanding",null,null,null,"what was build alastly",null,null,"http://bote-forum.square7.ch/phpBB3/viewtopic.php?f=38&t=1895"]
[null,null,null,"Programming","ShipOverview improving",null,null,null,null,null,null,"a) http://bote-forum.square7.ch/phpBB3/viewtopic.php?f=38&t=1517 b) http://bote-forum.square7.ch/phpBB3/viewtopic.php?f=38&t=1588"]
[null,null,null,"Programming","Events",null,null,null,null,null,null,"http://bote-forum.square7.ch/phpBB3/viewtopic.php?f=38&t=443"]
[null,null,null,"Programming","GroundCombat",null,null,null,null,null,null,"http://bote-forum.square7.ch/phpBB3/viewtopic.php?f=38&t=1447"]
[null,null,null,"Programming","Network Code","Turn End Ready Function",null,null,"Function that shows who is ready and who/how many are not",null,null,"http://bote-forum.square7.ch/phpBB3/viewtopic.php?f=38&t=1373"]
[33,"9.1",null,"Homepage",null,null,null,null,null,"rainer","Malle","http://www.hp.birth-of-the-empires.de/"]
[34,"9.2","de","German Wiki",null,null,null,null,"always fill with information, just log in and add information ","everybody"]
[35,"9.3","en","English Wiki",null,null,null,null,"necessary, or is german wiki with translation link ok? (this is without dopple editing of textes)",null,null,"http://botf2.star-trek-games.com/viewtopic.php?f=14&t=4209"]
[36,"9.4",null,"Facebook",null,null,null,null,null,"??? / rainer","???","http://de-de.facebook.com/pages/Birth-of-the-Empires/114690708606169?sk=wall"]
[37,"9.5",null,"Google",null,null,null,null,null,"rainer",null,"http://bote-forum.square7.ch/phpBB3/viewtopic.php?f=36&t=767"]
[38,"9.6",null,"Some Download-Amounts"]
[39,"16",null,"VideoTeaser"]
[40,"10",null,"Hotkeys+Mouse",null,null,null,null,null,null,null,"http://bote-forum.square7.ch/phpBB3/viewtopic.php?f=37&t=1514"]
[41]
[42]
[43]

{"sheet":"Tabelle3","index":8,"n_rows":25,"n_cols":2,"rows_kept":25,"cut":false,"hidden":false,"merged":[]}
[]
[]
[null,"Beam damage calculation and stated values in BotE"]
[]
[2,"Number (of beams) at ship"]
[1,"Number on shoot"]
[15,"Beamtime"]
[100,"(seconds - beam damage values in BotE are stated for 100 seconds!!!)"]
[35,"Rechargetime"]
[null,"Bonus from System is not relevant for this calculation"]
[400,"Damage of one beam"]
[]
[24000,"formula is: 2 x 1 x 15 x (100 / (15+35)) x 400"]
[]
[null,"Formula: "]
[]
[null,"At  last x damage of one beam (400)"]
[]
[null,"Before: 100 sec. / time. Time = one beamtime + rechargetime"]
[null,"When beamtime+rechargetime > 50 (would mean, only one shoot is possible in 100 sec.), there is "]
[null,"a tolerance. From 71 upon damage is reduced in steps (here until 12000 is reached. 12000 is "]
[null,"minimum for 1 beam out of each of the 2 beam weapons)."]
[null,"Thanks to Darkness for his explanatory notes"]
[]
[null,"First (of course): Number of beam weapons x shoots x number of shoot in 100 seconds"]